Cogmind - Beta 12 @@@ ROGUE MODE // 2023.03.22 @ 22:44:41 Player: Pogmind Result: Destroyed by P-80 Master with Gamma Rifle Performance ------------- Evolutions (8) 4000 Regions Visited (32) 6400 Robots Destroyed (667) 3335 Value Destroyed (29686) 29686 Prototype IDs (121) 2420 Alien Tech Used (10) 2000 Bonus (21143) 21143 TOTAL SCORE: 68984 Bonus ------- Triggered High Security 500 High Alert Combat Kills 9131 Follower Combat Kills 4557 Network Hubs Disabled 400 Aligned with FarCom 300 Met Data Miner 300 Met Zhirov 300 A7 Reached Mainframe 300 Read Decrypted Archives 300 Found Hidden Lab 3000 Used Core Reset Matrix 3000 Scanned by Researcher 500 Pursued by Intercept 2000 Friendly Fire -3445 Cogmind --------- Core Integrity 0/1450 Matter 167/300 Energy 25/600 System Corruption 5% Temperature Cool (0) Movement Walking (160) Ox1 Location -2/Testing Parts ------- > --- POWER (3) -------- (None) > --- PROPULSION (4) --- Myomer Exoskeleton > --- UTILITY (13) ----- Experimental Heat Sink Coolant Network Huge Storage Unit Advanced Energy Well Experimental Phase Shifter SHELL Armor SHELL Armor > --- WEAPON (4) ------- (None) > --- INVENTORY (25) --- Weapon Mount Weapon Mount Experimental Shock Absorption System Experimental EM Disruption Field Advanced Hardlight Generator Potential Cannon Heavy Hardcell Cannon Fusion Bomb Launcher Peak State ------------ > --- POWER ------------ Quantum Reactor Quantum Reactor Light Quantum Reactor > --- PROPULSION ------- Centrium Wheel Centrium Wheel Centrium Wheel > --- UTILITY ---------- Advanced Cooling System Huge Storage Unit Experimental Sensor Array Experimental Signal Interpreter Core Analyzer Medium Regenerative Plating Heavy Regenerative Plating Thermal Barrier Advanced Hardlight Generator Phase Redirector Experimental Hacking Suite Deep Network Scanner > --- WEAPON ----------- Perforator Sigix Broadsword > --- INVENTORY -------- Improved Fusion Compressor Myomer Exoskeleton Experimental Heat Sink Energy Well Advanced Energy Well Weapon Mount Weapon Mount Experimental Phase Shifter SHELL Armor Experimental Shock Absorption System Experimental EM Disruption Field Advanced Hardlight Generator Dimensional Node Initializer Subatomic Replicator Potential Cannon Potential Cannon Heavy Hardcell Cannon Fusion Bomb Launcher [Rating: 225] Favorites ----------- Power Quantum Reactor Engine Reinforced Ion Engine Power Core Micro Fission Core Reactor Quantum Reactor Propulsion Light Treads Treads Light Treads Leg Flexi-carbon Leg Wheel Centrium Wheel Hover Unit Aerolev Unit Flight Unit Improved Flight Unit Utility Huge Storage Unit Device Experimental Sensor Array Storage Huge Storage Unit Processor Improved Signal Interpreter Hackware Hacking Suite Protection Powered Armor Artifact Phase Redirector Weapon Precision Beam Rifle Energy Gun Precision Beam Rifle Energy Cannon EM Pulse Cannon Ballistic Gun Hypervelocity Gauss Rifle Ballistic Cannon Assault Cannon Launcher Heavy Missile Launcher Special Weapon Welding Torch Impact Weapon Heavy Flail Slashing Weapon Chainsword Piercing Weapon Force Lance Build | -11 -10 -10 -9 -9 -9 -8 -8 -8 -7 -7 -7 -7 -6 -6 -6 -6 -6 -6 -5 -5 -5 -5 -4 -4 -4 -4 -4 -4 -3 -3 -2 -2 ------- Run | Jun Mat Min Mat Min Exi Min Mat Sto Fac Low Low Dat Pro Fac Ext Cet Arc Hub Fac Upp Upp Zhi Pro Fac Was Fac Arm Lab Res Qua Res Tes Slots Evolved 16 | . . . 2 . . . 2 . 2 . . . . 2 . . . . 2 . . . . 2 . . . . 2 . 2 . Power 2 | . . . . . . . . . . . . . . . . . . . . . . . . . . . . . 1 . 1 . Propulsion 2 | . . . 1 . . . 1 . . . . . . . . . . . . . . . . . . . . . . . . . Utility 10 | . . . 1 . . . 1 . 1 . . . . 2 . . . . 2 . . . . 2 . . . . 1 . . . Weapon 2 | . . . . . . . . . 1 . . . . . . . . . . . . . . . . . . . . . 1 . Parts Attached 1037 | 8 13 14 52 11 28 11 39 63 48 59 26 33 13 58 16 21 7 46 49 10 6 13 6 25 10 112 36 13 25 24 71 71 Power 59 | 1 . 1 3 . 3 . 3 9 1 . 2 5 . . . 1 1 . 1 . . 2 . 1 . 3 1 . 1 3 9 8 Engine 20 | 1 . 1 3 . 2 . 2 6 1 . 1 3 . . . . . . . . . . . . . . . . . . . . Core 9 | . . . . . . . . 1 . . 1 . . . . . . . . . . . . . . . . . 1 . 4 2 Reactor 30 | . . . . . 1 . 1 2 . . . 2 . . . 1 1 . 1 . . 2 . 1 . 3 1 . . 3 5 6 Propulsion 120 | 3 4 . 17 1 3 3 11 19 6 7 1 4 . 1 4 1 . 5 2 . . 2 . 2 4 9 4 1 . 3 1 2 Treads 87 | 2 1 . 14 1 3 3 10 15 5 6 1 3 . . 3 1 . 4 2 . . 1 . 2 3 7 . . . . . . Leg 7 | . . . . . . . . . . . . 1 . . 1 . . 1 . . . . . . 1 2 . . . . . 1 Wheel 22 | 1 3 . 1 . . . . 4 1 1 . . . 1 . . . . . . . . . . . . 4 1 . 3 1 1 Hover 1 | . . . . . . . 1 . . . . . . . . . . . . . . . . . . . . . . . . . Flight 3 | . . . 2 . . . . . . . . . . . . . . . . . . 1 . . . . . . . . . . Utility 523 | 2 3 . 11 2 14 4 11 12 24 31 8 15 3 38 2 7 5 31 32 8 5 8 5 19 . 71 30 6 21 13 43 39 Device 303 | 1 1 . 5 1 2 2 3 2 10 15 4 6 2 17 2 4 4 17 21 5 3 4 3 9 . 50 20 4 18 11 28 29 Storage 23 | 1 2 . . . 4 . . . 1 . . 1 . . . . . . . . . 1 . 1 . 1 1 1 . 1 5 3 Processor 8 | . . . . . . . . . 1 . . . . . . . . . 2 . . . . . . 3 . . 1 . 1 . Hackware 43 | . . . . . . . 3 . 5 . . . . 6 . . . 2 4 . . . . 2 . 8 9 . 1 . 3 . Protection 145 | . . . 6 1 8 2 5 10 7 16 4 8 1 15 . 3 1 12 5 3 2 3 2 7 . 9 . 1 1 1 6 6 Artifact 1 | . . . . . . . . . . . . . . . . . . . . . . . . . . . . . . . . 1 Weapon 335 | 2 6 13 21 8 8 4 14 23 17 21 15 9 10 19 10 12 1 10 14 2 1 1 1 3 6 29 1 6 3 5 18 22 Energy Gun 72 | 1 5 7 3 . . . 2 5 6 8 8 4 3 8 5 5 . . . . . . . . . . . 2 . . . . Energy Cannon 65 | . . 1 9 . 1 . . 7 1 2 2 1 6 2 4 1 1 2 2 . . . . . . 1 . 1 2 1 9 9 Ballistic Gun 30 | 1 1 . 2 . 1 . . 3 1 . . . . . 1 5 . 6 2 . . . . . 1 2 . . . . . 4 Ballistic Cannon 61 | . . 2 3 4 2 2 8 . . . . . . . . . . 2 3 1 1 . 1 1 3 14 1 2 1 1 4 5 Launcher 39 | . . 3 3 3 1 2 1 4 3 3 2 1 1 3 . 1 . . 1 . . . . . . 3 . . . 1 3 . Special Weapon 2 | . . . . 1 . . . . . 1 . . . . . . . . . . . . . . . . . . . . . . Impact Weapon 4 | . . . . . . . . . 4 . . . . . . . . . . . . . . . . . . . . . . . Slashing Weapon 57 | . . . 1 . 3 . 3 4 2 7 3 3 . 6 . . . . 6 1 . 1 . 2 2 7 . . . . 2 4 Piercing Weapon 5 | . . . . . . . . . . . . . . . . . . . . . . . . . . 2 . 1 . 2 . . Special Melee Weapon . | . . . . . . . . . . . . . . . . . . . . . . . . . . . . . . . . . Unidentified Prototypes 49 | . . . 3 1 3 . 2 5 1 1 . 4 . . . 4 . 5 . . . 3 . . . . . 5 . . 2 10 Corrupted Parts 2 | . . . . . . . . . . . . . . . . . 1 1 . . . . . . . . . . . . . . System Corruption 8 | . . . . . . . . . . . . . . . . . 3 5 . . . . . . . . . . . . . . Parts Lost 119 | . 1 3 8 . 4 4 8 34 1 3 . 4 . . . . 4 1 . . . . . . . 15 1 . . 1 4 23 Power 18 | . . 1 2 . . . 1 3 . . . . . . . . 1 . . . . . . . . 2 1 . . . 3 4 Propulsion 37 | . . . 4 . 2 3 3 14 1 2 . 2 . . . . . 1 . . . . . . . 2 . . . . . 3 Utility 38 | . . . 1 . 2 1 2 8 . . . 1 . . . . 2 . . . . . . . . 7 . . . 1 1 12 Weapon 26 | . 1 2 1 . . . 2 9 . 1 . 1 . . . . 1 . . . . . . . . 4 . . . . . 4 Highest Loss Streak 16 | . 1 2 3 . 4 2 3 16 1 1 . 2 . . . . 4 1 . . . . . . . 5 1 . . 1 2 13 To Critical Strikes 3 | . . . . . 2 . . . . . . . . . . . . . . . . . . . . 1 . . . . . . Average Slot Usage (%) 91 | . 99 99 97 99 94 99 99 95 92 97 100 93 100 94 86 86 81 92 87 81 82 80 82 83 88 78 82 83 86 83 82 82 Engine 4 | . 14 14 10 11 10 11 3 5 7 7 7 4 7 6 6 1 . . . . . . . . . . . . . . . . Reactor 2 | . . . . . . . 5 2 . . . 1 . . . 4 6 6 5 5 5 5 5 4 5 4 5 5 4 7 9 9 Treads 19 | . 12 . 29 33 32 33 35 30 16 25 30 29 30 16 13 15 20 19 10 11 11 11 11 9 9 9 8 . . . . . Wheel 3 | . 15 28 3 . . . . 4 6 2 . . . 4 6 4 . . . . . . . . . . 4 20 18 17 15 13 Device 11 | . 14 14 10 . 1 10 5 8 3 13 13 3 14 12 19 20 16 12 17 19 22 18 22 16 21 12 14 7 12 9 10 17 Storage 7 | . 14 14 11 11 13 11 9 9 7 7 7 7 7 6 6 6 6 6 5 5 5 5 5 5 5 4 5 5 4 4 5 5 Processor 4 | . . . . . . . . . 7 7 7 7 7 6 6 6 6 4 4 5 5 5 5 5 5 7 19 15 10 13 12 10 Hackware 6 | . . . . . . . 10 4 17 . . . . 7 . . . 10 9 5 5 5 5 13 15 18 13 15 17 15 15 8 Protection 8 | . . . 10 21 14 11 10 11 1 8 8 17 7 12 6 6 6 10 10 8 5 7 5 10 10 6 . 3 3 4 3 5 Energy Gun 5 | . 20 26 3 . . . . 3 16 16 18 11 6 8 15 13 16 9 . . . . . . . . . . . . . . Energy Cannon 2 | . . . 12 . . . . 4 . 1 2 . 16 7 3 . 1 5 . . . . . . . . . . 2 . 1 2 Ballistic Gun 1 | . 7 . 1 . 5 . . . . . . . . . . 4 . 4 4 . . . . . . . . . . . . . Ballistic Cannon 6 | . . 1 3 21 9 21 16 5 . . . . . . . . . . 5 14 16 12 16 10 10 8 4 5 2 3 2 . Slashing Weapon 2 | . . . . . 6 . 1 3 2 3 1 6 . 3 . . . . 4 2 . 3 . 4 4 3 . . . . 3 3 Naked Turns . | . . . . . . . . . . . . . . . . . . . . . . . . . . . . . . . . . Heaviest Build 384 | 15 92 93 112 112 300 108 112 113 109 114 115 133 140 148 144 153 133 157 154 164 155 155 161 156 138 151 251 285 293 303 384 223 Greatest Support 160 | 40 40 32 60 60 60 60 83 80 80 83 86 86 83 83 28 140 140 160 160 160 160 160 160 160 160 160 155 64 64 64 64 100 Greatest Overweight (x) 60 | . 5 2 5 1 4 1 1 8 3 3 1 1 1 5 5 5 . 1 1 1 . 1 1 1 1 1 3 4 4 4 6 60 Average Overweight (x) 1 | . 1 2 1 1 1 1 1 1 2 1 1 . 1 3 4 3 . . . . . . . . . . . 3 4 4 4 3 Largest Inventory Capacity 35 | 8 25 25 25 25 35 25 25 25 25 25 25 25 25 25 25 25 25 25 25 25 25 25 25 25 25 25 35 35 35 35 35 25 Average Capacity 25 | 7 17 25 25 25 23 25 25 25 25 25 25 25 25 25 25 25 25 25 25 25 25 25 25 25 25 23 26 35 35 35 33 25 Most Carried 35 | 3 24 25 25 25 26 25 25 25 25 25 25 25 25 25 25 25 25 25 25 25 25 25 25 25 25 25 34 35 35 35 35 25 Average Carried 24 | 2 14 23 23 24 22 23 24 21 24 23 24 24 24 24 24 24 23 24 24 24 25 24 25 24 24 22 24 34 32 34 32 23 Final Capacity 35 | 8 25 25 25 25 25 25 25 25 25 25 25 25 25 25 25 25 25 25 25 25 25 25 25 25 25 25 35 35 35 35 25 25 Final Carried 35 | 3 24 22 25 25 25 23 25 25 23 25 25 25 25 25 25 25 20 25 25 25 25 25 25 25 25 25 33 35 32 35 25 10 Class Distribution -------------------- 31% | Scavenger-Mutant 14% | Mutant 13% | Wizard-Mutant 12% | Hacker-Mutant 8% | Scavenger-Tank 4% | Commander-Mutant 4% | Skirmisher 4% | Scavenger-Skirmisher Dominant Class ---------------- Mutant | -10/Materials Mutant | -10/Mines Scavenger-Mutant | -9/Materials Scavenger-Mutant | -9/Mines Mutant | -9/Exiles Mutant | -8/Mines Scavenger-Mutant | -8/Materials Commander-Mutant | -8/Storage Hacker-Mutant | -7/Factory Scavenger-Mutant | -7/Lower Caves Scavenger-Skirmisher | -7/Lower Caves Scavenger-Mutant | -7/Data Miner Skirmisher | -6/Proximity Caves Derelict-Mutant | -6/Factory Commander-Mutant | -6/Extension Commander-Mutant | -6/Cetus Scavenger-Tank | -6/Archives Scavenger-Mutant | -6/Hub_04(d) Scavenger-Mutant | -5/Factory Scavenger-Mutant | -5/Upper Caves Scavenger-Tank | -5/Upper Caves Scavenger-Mutant | -5/Zhirov Scavenger-Tank | -4/Proximity Caves Hacker-Mutant | -4/Factory Hacker-Mutant | -4/Waste Wizard-Mutant | -4/Factory Wizard-Mutant | -4/Armory Wizard-Mutant | -4/Lab Wizard-Mutant | -3/Research Wizard-Mutant | -3/Quarantine Wizard-Mutant | -2/Research Hacker-Mutant | -2/Testing Resources | -11 -10 -10 -9 -9 -9 -8 -8 -8 -7 -7 -7 -7 -6 -6 -6 -6 -6 -6 -5 -5 -5 -5 -4 -4 -4 -4 -4 -4 -3 -3 -2 -2 ----------- Run | Jun Mat Min Mat Min Exi Min Mat Sto Fac Low Low Dat Pro Fac Ext Cet Arc Hub Fac Upp Upp Zhi Pro Fac Was Fac Arm Lab Res Qua Res Tes Matter Collected 25370 | 309 422 283 802 292 699 395 1279 898 768 649 335 395 140 597 231 623 40 1343 1308 861 259 704 40 453 315 3761 879 193 646 1087 1934 2430 Remotely . | . . . . . . . . . . . . . . . . . . . . . . . . . . . . . . . . . Salvage Created 30455 | 181 669 364 1664 74 490 287 1139 1958 1399 555 388 397 89 1040 269 247 40 1979 1417 252 187 458 . 63 67 2816 535 89 619 855 3051 6817 Parts 1394 | 10 58 32 91 12 63 14 83 92 61 27 9 19 6 42 10 25 3 99 78 4 4 5 . 1 3 116 34 5 31 55 100 202 Haulers Intercepted 15 | . 1 . 5 . . . 1 3 1 . . . . . . . . 2 1 . . . . . . 1 . . . . . . Recyclers Shooed 14 | . . . 1 . . 1 1 3 1 . . . . 2 1 . . . 1 . . . . . . 3 . . . . . . Parts Field Recycled . | . . . . . . . . . . . . . . . . . . . . . . . . . . . . . . . . . Retrieved Matter . | . . . . . . . . . . . . . . . . . . . . . . . . . . . . . . . . . Parts Self-Destructed 97 | . . . . . . . . . . 21 7 . 3 . . . . . . 36 16 3 11 . . . . . . . . . Prevented 8 | . . . . . . . . . . . . . 3 . . . . . . 5 . . . . . . . . . . . . Kills | -11 -10 -10 -9 -9 -9 -8 -8 -8 -7 -7 -7 -7 -6 -6 -6 -6 -6 -6 -5 -5 -5 -5 -4 -4 -4 -4 -4 -4 -3 -3 -2 -2 ------- Run | Jun Mat Min Mat Min Exi Min Mat Sto Fac Low Low Dat Pro Fac Ext Cet Arc Hub Fac Upp Upp Zhi Pro Fac Was Fac Arm Lab Res Qua Res Tes Combat Hostiles Destroyed 500 | . 16 16 29 10 5 10 34 33 21 13 6 4 3 14 4 1 . 20 27 6 3 . . 2 . 45 11 1 10 19 44 93 Melee 22 | . . . . . . . . 1 2 1 . 3 . . . . . . 1 . . . . . . 2 . 1 . . 3 8 Guns 82 | . 16 7 4 . . . . 6 8 4 2 1 2 5 4 1 . 13 3 . . . . . . . . . . . . 6 Cannons 254 | . . . 14 3 . 7 31 21 . 1 . . 1 3 . . . 6 12 6 3 . . 2 . 36 11 . 8 15 24 50 AOE 112 | . . 9 11 7 5 3 3 3 5 7 4 . . 6 . . . 1 11 . . . . . . 6 . . . 3 6 22 Classes Destroyed 30 | 2 7 1 3 1 2 1 . 1 1 2 1 . 1 . . . . . . 1 . . . . . . . . 1 . 1 4 Worker 34 | . 2 1 5 . . 2 . 2 5 . . . . 1 . . . 7 4 . . . . . . 3 . . 1 . . 1 Builder 22 | . 1 . . . . . . 2 6 . . . . 1 1 . . 1 2 . . . . . . 5 . . . . 2 1 Tunneler 13 | 5 2 2 . . . . . . . . . . . . . . . . . . . . . . . . . . . . 4 . Hauler 15 | . 1 . 5 . . . 1 3 1 . . . . . . . . 2 1 . . . . . . 1 . . . . . . Recycler 37 | 1 . . 5 1 . 1 2 5 5 . . . . 4 . . . 2 3 . . . . . . 7 . . 1 . . . Carrier 2 | . . . . . . . . . . . . . . . . . . . . . . . . . . . . . . . . 2 Minesweeper 1 | . . . . . . . . . . . . . . . . . . . . 1 . . . . . . . . . . . . Mechanic 8 | . . . 1 . . . . . 1 . . . . 1 . . . . . . . . . . . . . . . . 1 4 Operator 8 | . 1 . 1 . . . 2 3 . . . . . . . . . . 1 . . . . . . . . . . . . . Drone 2 | . . . . . . . . . . . . . 2 . . . . . . . . . . . . . . . . . . . Turret 1 | . . . . . 1 . . . . . . . . . . . . . . . . . . . . . . . . . . . Watcher 39 | . 3 . 5 . . . 5 . 2 . . . . 1 . . . 3 3 . . . . . . 6 3 . . 3 3 2 Swarmer 101 | . 6 6 12 7 . 3 15 . 7 7 . . . 9 . . . 1 13 2 . . . . . 6 . . . 5 . 2 Cutter 3 | . . . . . . . . . . . . . . . . . . . . . . . . . . . . . 3 . . . Saboteur 3 | . . . . . . . . . . . . . . . . . . . . . . . . . . . . . . . 1 2 Grunt 158 | . 10 8 6 . . 5 8 18 6 . 3 . . 2 2 . . 4 6 2 1 . . 2 . 14 . . . 3 16 42 Brawler 18 | . . . 1 . . 1 1 3 . . . . . . 1 . . . . 1 1 . . . . . . . . . 1 8 Duelist 8 | . . . . . . . . . . . 1 . . . . . . . . . . . . . . . . . . . 1 6 Protector 10 | . . . . . . . . 2 . . . . . . . . . 1 . . . . . . . . . . . . . 7 Researcher 3 | . . . . . . . . . . . . . . . . . . . . . . . . . . . . . . . . 3 Sentry 57 | . . . 10 . . . 9 7 2 1 1 . . . 1 . . 5 2 1 1 . . . . 8 2 . 2 3 2 . Demolisher 4 | . . . . 1 . . . 3 . . . . . . . . . . . . . . . . . . . . . . . . Specialist 2 | . . . . . . . . . . 2 . . . . . . . . . . . . . . . . . . . . . . Hunter 39 | . . . . . . 1 1 . 3 1 1 . 1 . . . . 2 1 . . . . . . 8 4 . . . 11 5 Programmer 58 | . . . . . . . . . 3 1 . . . 3 . . . 4 5 . . . . . . 9 5 . 3 5 9 11 Cetus Guard 1 | . . . . . . . . . . . . . . . . 1 . . . . . . . . . . . . . . . . Enhanced Grunt 5 | . . . . . . . . . . . . 4 . . . 1 . . . . . . . . . . . . . . . . Lightning 3 | . . . . . . . . . . . . . . . . . . 3 . . . . . . . . . . . . . . Tracker 6 | . . . . . . . . . . . . . . . . . . . . . . . . . . . . . 1 2 2 1 Combat Programmer 5 | . . . . . . . . . . . . . . . . . . . . . . . . . . . . . 1 1 1 2 Investigator 1 | . . . . . . . . . . . . . . . . . . . . . . . . . . . . . . . . 1 Striker 5 | . . . . . . . . . . . . . . . . . . . . . . . . . . . . . . . . 5 Executioner 2 | . . . . . . . . . . . . . . . . . . . . . . . . . . . . . . . . 2 Zionite 7 | . . . . . 7 . . . . . . . . . . . . . . . . . . . . . . . . . . . Packrat 2 | . . . . . . . . . . . 2 . . . . . . . . . . . . . . . . . . . . . Assembled 11 | . . 2 . 2 7 . . . . . . . . . . . . . . . . . . . . . . . . . . . Surgeon 1 | . . . . . . . . . . . . . . . . . . . . . . . . . . 1 . . . . . . Martyr 1 | . . . . . . . . . . . . . . . . . . . . . . . . . 1 . . . . . . . Mutant 1 | . . . . . . . . . . 1 . . . . . . . . . . . . . . . . . . . . . . Best Kill Streak 29 | 3 5 6 9 4 6 4 5 8 7 4 4 1 1 4 2 1 . 6 11 2 2 . . 1 . 10 2 1 3 6 9 29 Combat Bots Only 26 | . 5 5 5 4 5 3 4 6 3 4 4 1 1 3 2 1 . 4 8 2 2 . . 1 . 9 2 1 3 5 7 26 Max Kills in Single Turn 5 | 1 2 3 4 2 5 2 3 2 5 2 2 1 1 2 1 1 . 3 5 2 1 . . 1 1 3 1 1 1 3 3 4 Gunslinging . | . . . . . . . . . . . . . . . . . . . . . . . . . . . . . . . . . Exploded 5 | . . 3 2 2 5 2 3 2 2 2 2 . . 2 . . . 1 4 . . . . . . 3 . . . 3 3 3 Melee 1 | . . . . . . . . 1 1 1 . 1 . . . . . . 1 . . . . . . 1 . 1 . . 1 1 Uniques/NPCs Destroyed 7 | . . . . . 4 . . . . . . 1 . . . 1 . . . . . . . . . . . 1 . . . . EX-HEX (-9/Exiles) 8R-AWN (-9/Exiles) EX-BIN (-9/Exiles) EX-DEC (-9/Exiles) Data Miner (-7/Data Miner) A7 (-6/Cetus) A5 (-4/Lab) Combat | -11 -10 -10 -9 -9 -9 -8 -8 -8 -7 -7 -7 -7 -6 -6 -6 -6 -6 -6 -5 -5 -5 -5 -4 -4 -4 -4 -4 -4 -3 -3 -2 -2 -------- Run | Jun Mat Min Mat Min Exi Min Mat Sto Fac Low Low Dat Pro Fac Ext Cet Arc Hub Fac Upp Upp Zhi Pro Fac Was Fac Arm Lab Res Qua Res Tes Damage Taken 38551 | . 382 390 1236 57 758 870 1691 4713 1489 550 90 1111 53 423 284 44 1358 1737 980 14 15 429 . 129 . 6247 837 350 610 522 3480 7702 Core 3754 | . 88 59 213 . 51 57 115 354 178 97 13 43 9 . 22 . 184 120 23 . . . . 18 . 694 68 6 12 46 142 1142 Absorbed by Shields 6805 | . . . . . . . . 14 . . . . . . 102 17 82 . 227 5 5 84 . . . 1169 . . 258 440 744 3658 Reduced by Siege Mode 620 | . . . . . . . . . . . . . . . . . . 23 92 . . . . 12 . 399 94 . . . . . Redirected to Core 234 | . . . . . . . . . . . . . . . . . . . . . . . . . . . . . . . . 234 Redirected to Shielding 422 | . . . . . . . . . . . . . . . . . . . . . . . . . . 267 . . . . . 155 Regen/Repaired (Parts) 9178 | . . . 98 . . . 60 247 89 . . . . . . 5 59 274 1094 . . . . 819 . 1870 . . 398 253 1559 2353 Core Remaining (%) 56 | 100 . 41 . . . 19 . 14 . . . . 51 . . . . 61 . . . . 97 . . . . 29 . 95 . . Volleys Fired 1493 | 13 52 63 93 10 54 26 79 89 51 54 47 2 6 54 53 35 3 91 69 32 9 2 . 8 . 144 46 . 35 68 95 110 Largest 3 | 2 2 2 2 2 1 2 2 2 3 3 3 3 3 3 3 3 3 3 3 3 3 1 . 3 . 3 1 . 2 1 1 1 Hottest 241 | 70 130 130 130 88 120 88 88 136 183 187 183 183 189 212 183 183 183 241 180 171 171 57 . 171 . 195 75 . 194 81 200 200 Shots Fired 2496 | 26 104 101 182 18 55 49 151 167 106 88 64 6 17 98 99 73 10 223 121 69 27 2 . 20 . 264 46 . 37 68 95 110 Gun 916 | 26 104 60 42 . 46 . . 21 85 48 21 6 8 57 71 73 10 166 34 . . . . . . . . . . . . 38 Cannon 1501 | . . 33 133 14 7 44 150 142 6 36 37 . 9 34 28 . . 57 83 69 27 2 . 20 . 257 46 . 37 67 91 72 Launcher 79 | . . 8 7 4 2 5 1 4 15 4 6 . . 7 . . . . 4 . . . . . . 7 . . . 1 4 . Special . | . . . . . . . . . . . . . . . . . . . . . . . . . . . . . . . . . Kinetic 1286 | 13 30 31 24 14 46 44 150 67 . . . . . . . 53 . 96 102 69 27 2 . 20 . 257 46 . 19 61 43 72 Thermal 1037 | 13 74 62 151 . 7 . . 91 91 84 58 6 8 81 99 20 10 127 15 . . . . . . . . . 7 . 8 25 Explosive 79 | . . 8 7 4 2 5 1 4 15 4 6 . . 7 . . . . 4 . . . . . . 7 . . . 1 4 . Electromagnetic 94 | . . . . . . . . 5 . . . . 9 10 . . . . . . . . . . . . . . 11 6 40 13 Robot Hit Streak 32 | 7 11 9 15 5 5 11 11 12 17 12 10 5 6 18 32 21 8 20 15 18 11 . . 13 . 31 6 . 10 10 23 18 Robot Miss Streak 18 | 2 3 2 8 2 7 4 4 3 2 1 2 . 2 3 2 2 2 4 3 2 1 . . 1 . 2 4 . 3 2 2 18 Penetration Max 3 | . . . . . 1 . . 1 . . . . . . . 2 . 3 1 . . . . . . 1 . . . . 1 3 Secondary Targets 8 | . 3 . 1 . . . . . 1 . . . . . 2 1 . . . . . . . . . . . . . . . . Max Gunslinging Chain 1 | . 1 . 1 . . . . . 1 . . . . . 1 1 . . . . . . . . . . . . . . . . Shots Hit Robots 1814 | 20 67 24 122 6 52 29 97 129 99 46 17 19 8 58 56 51 5 156 90 41 21 15 . 13 3 218 30 18 25 48 99 132 Core Hits 1126 | 7 30 25 64 9 34 18 52 64 39 22 15 13 4 36 20 25 3 76 56 12 7 5 . 4 1 122 12 5 14 24 49 259 Critical Kills 72 | . . . . . 3 . . 6 . . . . . . . 1 . 11 3 . . . . . . . . . . . 1 47 Critical Parts Destroyed 111 | . . . . . 9 . . 4 8 . . . . . . 6 . 12 4 . . . . . . . . . . . . 68 Critical Strikes 326 | 1 4 1 . 1 14 1 5 12 17 3 2 3 2 4 4 8 . 28 20 5 1 2 . 1 . 27 8 1 3 3 13 132 Burn 34 | 1 4 1 . . . . . . 8 3 2 . 2 4 4 1 . 4 . . . . . . . . . . . . . . Meltdown 5 | . . . . . . . . 1 . . . . . . . . . . . . . . . . . . . . . . 1 3 Destroy 182 | . . . . . 12 . . 10 . . . . . . . 7 . 24 8 . . . . . . . . . . . . 121 Blast 64 | . . . . 1 . 1 4 1 . . . . . . . . . . 12 5 1 . . 1 . 23 8 . 2 3 2 . Corrupt 13 | . . . . . . . . . . . . . . . . . . . . . . . . . . . . . 1 . 10 2 Smash 8 | . . . . . . . . . 8 . . . . . . . . . . . . . . . . . . . . . . . Sever 19 | . . . . . 2 . 1 . 1 . . 3 . . . . . . . . . 2 . . . 4 . . . . . 6 Impale 1 | . . . . . . . . . . . . . . . . . . . . . . . . . . . . 1 . . . . Melee Attacks 628 | . . . 2 . 38 . 8 23 72 23 11 48 . 34 . . . . 45 5 . 24 . 19 3 89 12 38 12 21 36 65 Impact 52 | . . . . . . . . . 52 . . . . . . . . . . . . . . . . . . . . . . . Slashing 492 | . . . 2 . 38 . 8 23 20 23 11 48 . 34 . . . . 45 5 . 24 . 19 3 88 . . . . 36 65 Piercing 84 | . . . . . . . . . . . . . . . . . . . . . . . . . . 1 12 38 12 21 . . Sneak Attacks 83 | . . . 1 . 1 . 6 12 16 . . 1 . 5 . . . . 9 2 . . . . 3 14 . . 2 . 8 3 Combat Hostiles . | . . . . . . . . . . . . . . . . . . . . . . . . . . . . . . . . . Follow-up Attacks 9 | . . . . . 4 . . . . . . 5 . . . . . . . . . . . . . . . . . . . . Damage Inflicted 87366 | 262 1021 1062 3670 599 2185 985 3099 4560 4570 1461 719 855 180 1911 996 510 78 3376 4412 1374 733 1093 . 395 196 11792 2179 1161 1591 4391 11014 14936 Guns 10871 | 262 1010 378 488 . 451 . . 366 1138 727 262 12 51 772 996 510 78 1708 190 . . . . . . . . . . . . 1472 Cannons 41003 | . . 19 1727 137 256 613 2434 2440 . 33 . . 129 243 . . . 957 2198 1194 702 . . 395 . 8251 2179 . 1462 4077 6686 4871 Explosions 19053 | . . 665 1222 458 450 331 166 657 1341 488 457 . . 546 . . . 609 1331 . . . . . . 1669 . . . 314 2410 5939 Melee 15943 | . . . 73 . 1028 . 437 1088 2091 213 . 843 . 350 . . . . 693 180 . 1093 . . 196 1827 . 1161 129 . 1918 2623 Ramming 496 | . 11 . 160 4 . 41 62 9 . . . . . . . . . 102 . . 31 . . . . 45 . . . . . 31 Kinetic 32085 | 152 221 19 317 137 451 613 2434 1262 . . . . . . . 289 . 481 1891 1194 702 . . 395 . 8251 2179 . 1222 3961 3443 2471 Thermal 24456 | 110 789 378 2062 . 256 . . 1518 1656 760 262 12 51 844 996 221 78 2276 724 . . . . . . 177 . . 37 . 2070 9179 Explosive 10251 | . . 665 1058 458 450 331 166 571 823 488 457 . . 546 . . . . 1104 . . . . . . 1237 . . . 314 1583 . Electromagnetic 4135 | . . . . . . . . 112 . . . . 129 171 . . . 517 . . . . . . . 255 . . 203 116 2000 632 Impact 1560 | . . . . . . . . . 1560 . . . . . . . . . . . . . . . . . . . . . . . Slashing 13093 | . . . 73 . 1028 . 437 1088 531 213 . 843 . 350 . . . . 693 180 . 1093 . . 196 1827 . . . . 1918 2623 Piercing 1290 | . . . . . . . . . . . . . . . . . . . . . . . . . . . . 1161 129 . . . Highest Corruption 12 | . 1 1 4 4 4 9 . 3 1 1 . . . 1 . . 3 12 . . . . . . . 5 2 8 2 . . 5 Average Corruption 3 | . 1 1 4 4 3 7 . 2 1 1 . . . 1 . . 2 5 . . . . . . . 3 1 6 1 . . 2 Corruption Purged 26 | . . . . . 4 . . . . 1 . . . 1 . . 3 . . . . . . . . 7 2 . 3 . . 5 Corruption Blocked 20 | . . . . . . . . . . . . . . . . . . . . . . . . . . . . . . . . 20 Effects 258 | . 6 6 46 32 27 35 . 10 3 . . . . 3 . . 2 19 . . . . . . . 42 1 9 7 . . 10 Message Errors 53 | . 3 1 9 10 7 6 . 1 1 . . . . . . . . 6 . . . . . . . 8 . . . . . 1 Matter Fused 72 | . . 3 15 7 7 11 . 4 . . . . . . . . 1 3 . . . . . . . 10 1 2 4 . . 4 Heat Flow Errors 29 | . . . 6 5 2 4 . . 1 . . . . 1 . . . 1 . . . . . . . 6 . 2 . . . 1 Energy Discharges 34 | . 1 1 5 3 4 3 . 3 1 . . . . 1 . . . 3 . . . . . . . 6 . 1 2 . . . Parts Rejected 4 | . 1 . . . . . . . . . . . . . . . . . . . . . . . . 2 . 1 . . . . Parts Fused 5 | . . . . . 1 3 . . . . . . . . . . . . . . . . . . . . . . . . . 1 Data Loss (minor) 22 | . . . 5 3 2 5 . . . . . . . . . . . . . . . . . . . 3 . 3 . . . 1 Data Loss (major) 13 | . 1 . . 2 2 1 . 1 . . . . . . . . . . . . . . . . . 3 . . 1 . . 2 Misfires 16 | . . 1 4 2 1 2 . 1 . . . . . . . . 1 1 . . . . . . . 3 . . . . . . Alerts 3 | . . . 1 . 1 . . . . . . . . 1 . . . . . . . . . . . . . . . . . . Weapon Failures 7 | . . . 1 . . . . . . . . . . . . . . 5 . . . . . . . 1 . . . . . . Overload Shots . | . . . . . . . . . . . . . . . . . . . . . . . . . . . . . . . . . Overflow Damage 7558 | . . . 103 17 34 5 176 394 994 92 10 . . 99 . . . 46 276 68 42 185 . 25 15 541 210 141 75 361 1914 1735 Projectiles 3316 | . . . 2 . . 5 31 41 . . . . . . . . . 20 57 . 18 . . 25 . 375 210 . 75 361 1298 798 Explosions 1409 | . . . 66 17 34 . . 66 153 23 10 . . 47 . . . 14 163 . . . . . . 1 . . . . 205 610 Melee 2833 | . . . 35 . . . 145 287 841 69 . . . 52 . . . 12 56 68 24 185 . . 15 165 . 141 . . 411 327 Knockbacks 193 | . . . 2 1 . 6 16 6 6 . . . . . . . . 1 13 1 1 . . 2 . 41 9 . 3 10 11 64 Impact 11 | . . . 2 . . . 2 . 6 . . . . . . . . 1 . . . . . . . . . . . . . . Kinetic 172 | . . . . 1 . 6 13 5 . . . . . . . . . . 13 1 1 . . 2 . 40 9 . 3 10 10 58 Secondary 10 | . . . . . . . 1 1 . . . . . . . . . . . . . . . . . 1 . . . . 1 6 Self-Inflicted Damage 973 | . . 30 88 . . 31 21 68 22 . . . . 116 . . . 159 . . . . . . . 149 . . . . . 289 Shots 27 | . . 2 3 . . 1 1 1 1 . . . . 3 . . . 2 . . . . . . . 3 . . . . . 10 Rammed 42 | . 3 . 15 1 . 4 5 2 . . . . . . . . . 8 . . 1 . . . . 3 . . . . . . Targets Rammed 49 | . 3 . 17 2 . 5 6 3 . . . . . . . . . 8 . . 1 . . . . 3 . . . . . 1 Kicked 1 | . . . . . . . . . . . . . . . . . . . . . . . . . . . . . . . . 1 Crushed 6 | . . . 2 1 . 1 1 1 . . . . . . . . . . . . . . . . . . . . . . . . Highest Temperature 304 | 18 222 211 216 282 251 261 54 279 289 173 117 298 114 261 167 72 48 225 230 99 72 . . 249 . 304 12 58 102 42 240 120 Average Temperature 63 | 10 64 63 84 86 86 106 24 91 87 66 44 93 46 59 51 35 24 54 59 41 27 . . 101 . 53 6 51 17 10 44 30 Received Heat Transfer 6109 | . 171 189 327 . 39 288 657 1566 273 114 27 . . 36 69 . . 312 117 6 6 . . 33 . 719 72 . 25 98 430 535 Effects 9 | . . . 3 1 . 2 . . . . . . . 1 . . . 1 . . . . . 1 . . . . . . . . Energy Bleed 3 | . . . . 1 . . . . . . . . . 1 . . . . . . . . . 1 . . . . . . . . Interference 6 | . . . 3 . . 2 . . . . . . . . . . . 1 . . . . . . . . . . . . . . Siege Activations 70 | . . . . . . . . . . . . . . . . . . 8 10 4 3 . 1 3 . 26 15 . . . . . Total Turns 1560 | . . . . . . . . . . . . . . . . . . 263 136 289 95 . 100 50 . 386 241 . . . . . Longest Duration 161 | . . . . . . . . . . . . . . . . . . 161 26 160 47 . 100 41 . 72 61 . . . . . Robots Corrupted 16 | . . . . . . . . . . . . . . . . . . . . . . . . . . . . . 2 1 10 3 Combat Hostiles 16 | . . . . . . . . . . . . . . . . . . . . . . . . . . . . . 2 1 10 3 Parts Fried 35 | . . . . . . . . . 7 . . . 1 1 . . . 6 . . . . . . . 1 . . 1 . 10 8 Impact Corruptions 28 | . . . 1 . . . . . 22 . . . . . . . . 1 . . 3 . . . . . . . . . 1 . Robots Melted 9 | . . . . . . . . 2 2 . . . . . . . . . . . . . . . . . . . . . 1 4 Combat Hostiles 9 | . . . . . . . . 2 2 . . . . . . . . . . . . . . . . . . . . . 1 4 Parts Melted 78 | 1 4 3 15 . 1 . . 1 12 13 3 1 1 6 4 . 1 7 . . . . . . . . . . . . 1 4 Heat Transferred 33003 | 407 2146 962 4109 . 560 . . 2414 3236 1776 703 37 259 1887 2367 555 185 3060 100 . . . . . . 50 . . 37 . 1150 7003 Parts Sabotaged . | . . . . . . . . . . . . . . . . . . . . . . . . . . . . . . . . . Parts Stolen . | . . . . . . . . . . . . . . . . . . . . . . . . . . . . . . . . . Parts Stripped . | . . . . . . . . . . . . . . . . . . . . . . . . . . . . . . . . . Power Chain Reactions 4 | . . . . . . . . 1 . . . . . . . . . 2 . . . . . . . 1 . . . . . . Missiles Intercepted . | . . . . . . . . . . . . . . . . . . . . . . . . . . . . . . . . . Alert | -11 -10 -10 -9 -9 -9 -8 -8 -8 -7 -7 -7 -7 -6 -6 -6 -6 -6 -6 -5 -5 -5 -5 -4 -4 -4 -4 -4 -4 -3 -3 -2 -2 ------- Run | Jun Mat Min Mat Min Exi Min Mat Sto Fac Low Low Dat Pro Fac Ext Cet Arc Hub Fac Upp Upp Zhi Pro Fac Was Fac Arm Lab Res Qua Res Tes Peak Influence 3431 | 30 264 427 309 135 . 185 295 606 860 . . . . 206 1135 1066 621 510 996 . . . . 139 6 600 433 . 271 635 1468 3431 Initial 778 | . 19 102 41 87 . . . 70 268 . . . . 150 55 611 346 177 249 . . . . . 6 . 294 . . 134 357 778 Average 292 | 14 119 206 166 56 . 87 96 388 395 . . . . 121 567 868 486 201 352 . . . . 54 4 256 209 . 135 278 668 1698 Maximum Alert Level 5 | . 1 2 1 . . . 1 2 3 . . . . 1 4 3 2 2 3 . . . . . . 2 2 . 1 2 4 5 Low Security (%) 55 | 100 72 35 56 100 . 100 90 22 2 . . . . 92 29 . . 50 51 . . . . 100 100 42 54 . 83 37 . . Level 1 24 | . 27 57 43 . . . 9 17 72 . . . . 7 25 . 21 36 18 . . . . . . 35 41 . 16 39 33 . Level 2 10 | . . 7 . . . . . 60 15 . . . . . 3 9 78 13 6 . . . . . . 22 3 . . 22 28 . Level 3 5 | . . . . . . . . . 10 . . . . . 22 90 . . 23 . . . . . . . . . . . 21 36 Level 4 2 | . . . . . . . . . . . . . . . 19 . . . . . . . . . . . . . . . 16 26 Level 5 . | . . . . . . . . . . . . . . . . . . . . . . . . . . . . . . . . . High Security 1 | . . . . . . . . . . . . . . . . . . . . . . . . . . . . . . . . 36 Max Security . | . . . . . . . . . . . . . . . . . . . . . . . . . . . . . . . . . Squads Dispatched 151 | . 7 . 2 . . . 3 9 11 . . . . 7 5 . . 5 11 . . . . 4 . 17 6 . 7 5 14 38 Investigation 40 | . 5 . 2 . . . 2 3 4 . . . . 4 1 . . . 5 . . . . 2 . 5 1 . 1 . 4 1 Extermination 35 | . . . . . . . . . 3 . . . . 3 . . . 3 3 . . . . 2 . 6 5 . 2 3 2 3 Reinforcement 24 | . 2 . . . . . 1 4 1 . . . . . 1 . . 2 3 . . . . . . 6 . . 1 . 1 2 Assault 40 | . . . . . . . . 2 2 . . . . . 3 . . . . . . . . . . . . . 1 . 4 28 Garrison 2 | . . . . . . . . . 1 . . . . . . . . . . . . . . . . . . . . . . 1 Intercept 10 | . . . . . . . . . . . . . . . . . . . . . . . . . . . . . 2 2 3 3 Searches Triggered . | . . . . . . . . . . . . . . . . . . . . . . . . . . . . . . . . . Construction Impeded 7 | . . . . . . . . 1 . . . . . . . . . 2 2 . . . . . . 2 . . . . . . Haulers Reinforced 1 | . . . . . . . . . . . . . . . . . . . . . . . . . . 1 . . . . . . Active Scanning Responses . | . . . . . . . . . . . . . . . . . . . . . . . . . . . . . . . . . Cargo Convoy Interrupts . | . . . . . . . . . . . . . . . . . . . . . . . . . . . . . . . . . Stealth | -11 -10 -10 -9 -9 -9 -8 -8 -8 -7 -7 -7 -7 -6 -6 -6 -6 -6 -6 -5 -5 -5 -5 -4 -4 -4 -4 -4 -4 -3 -3 -2 -2 --------- Run | Jun Mat Min Mat Min Exi Min Mat Sto Fac Low Low Dat Pro Fac Ext Cet Arc Hub Fac Upp Upp Zhi Pro Fac Was Fac Arm Lab Res Qua Res Tes Distress Signals 35 | . 2 . 4 . . . 4 3 2 . . . . . 2 2 . 3 2 . . . . . . 5 . . . 1 5 . Communications Jammed 144 | . . . . . . . . . . . . . . . . . . . . . . . . . . 1 10 . . 34 37 62 Distress Signals 144 | . . . . . . . . . . . . . . . . . . . . . . . . . . 1 10 . . 34 37 62 Times Spotted 890 | . 23 14 42 8 59 10 47 57 42 15 5 4 3 16 53 14 11 25 45 16 12 . 2 7 . 74 17 1 16 24 73 155 Peak Tracking Total 20 | . 7 5 5 3 8 3 4 7 8 4 4 2 1 4 14 8 5 3 7 8 5 . 1 2 . 7 2 1 3 5 14 20 Tactical Retreats 39 | . 2 . 1 . 11 . 2 1 2 . . . . . 2 . 1 . . 2 2 . . 1 . 2 . . 1 1 2 6 Traps | -11 -10 -10 -9 -9 -9 -8 -8 -8 -7 -7 -7 -7 -6 -6 -6 -6 -6 -6 -5 -5 -5 -5 -4 -4 -4 -4 -4 -4 -3 -3 -2 -2 ------- Run | Jun Mat Min Mat Min Exi Min Mat Sto Fac Low Low Dat Pro Fac Ext Cet Arc Hub Fac Upp Upp Zhi Pro Fac Was Fac Arm Lab Res Qua Res Tes Traps Triggered 28 | . 6 . 1 . . . 1 3 2 . . . . 1 3 . . 1 2 . . . . 1 . 2 . . 2 . . 3 Indirectly 1 | . . . . . . . . . . . . . . . . . . . . . . . . . . 1 . . . . . . Trap Hack Attempts . | . . . . . . . . . . . . . . . . . . . . . . . . . . . . . . . . . Triggered . | . . . . . . . . . . . . . . . . . . . . . . . . . . . . . . . . . Disarmed . | . . . . . . . . . . . . . . . . . . . . . . . . . . . . . . . . . Reprogrammed 14 | . . . . . . . . . . . . . . . . . . . . . . . . . . 4 . . . 10 . . Reused 2 | . . . . . . . . . . . . 1 . . . . . . . . . . . . . 1 . . . . . . Traps Extracted 2 | . . . . . . . . . . 2 . . . . . . . . . . . . . . . . . . . . . . Installed 1 | . . . . . . . . . . . . 1 . . . . . . . . . . . . . . . . . . . . Triggered 1 | . . . . . . . . . . . . . . . . . . . . . . . . . . 1 . . . . . . Most Traps Carried 2 | . . . . . . . . . . 2 1 1 . . . . . . . . . . . . . . . . . . . . Machines | -11 -10 -10 -9 -9 -9 -8 -8 -8 -7 -7 -7 -7 -6 -6 -6 -6 -6 -6 -5 -5 -5 -5 -4 -4 -4 -4 -4 -4 -3 -3 -2 -2 ---------- Run | Jun Mat Min Mat Min Exi Min Mat Sto Fac Low Low Dat Pro Fac Ext Cet Arc Hub Fac Upp Upp Zhi Pro Fac Was Fac Arm Lab Res Qua Res Tes Machines Disabled 147 | . . . 7 1 10 4 1 2 15 2 . 1 . 4 9 1 2 9 19 1 1 4 . . . 17 5 3 2 8 3 16 Max in Single Turn 8 | . . . 3 1 2 1 1 1 8 1 . 1 . 2 1 . 1 4 6 1 1 1 . . . 5 1 1 1 1 1 2 Garrison Access 8 | . . . . . . . . . . . . . . 1 . . . . 1 . . . . 1 . 2 . . 1 . 1 1 Network Hub 2 | . . . . . . . . . . . . . . . . . . 2 . . . . . . . . . . . . . . Machines Repaired . | . . . . . . . . . . . . . . . . . . . . . . . . . . . . . . . . . Machines Sabotaged . | . . . . . . . . . . . . . . . . . . . . . . . . . . . . . . . . . Overloaded Fab Kills . | . . . . . . . . . . . . . . . . . . . . . . . . . . . . . . . . . Hacking | -11 -10 -10 -9 -9 -9 -8 -8 -8 -7 -7 -7 -7 -6 -6 -6 -6 -6 -6 -5 -5 -5 -5 -4 -4 -4 -4 -4 -4 -3 -3 -2 -2 --------- Run | Jun Mat Min Mat Min Exi Min Mat Sto Fac Low Low Dat Pro Fac Ext Cet Arc Hub Fac Upp Upp Zhi Pro Fac Was Fac Arm Lab Res Qua Res Tes Machines Accessed 200 | . 8 . 15 1 2 . 14 11 17 1 1 4 . 15 9 1 1 3 19 1 . 5 . 10 . 23 5 1 6 11 7 9 Terminals 112 | . 6 . 11 1 . . 10 8 10 . . . . 6 9 1 . 3 6 1 . . . 4 . 13 4 . 3 9 2 5 Fabricators 27 | . . . . . . . . . 3 . . . . 5 . . . . 6 . . . . 2 . 4 1 . 1 . 3 2 Repair Stations 15 | . . . 1 . . . 1 1 2 . . . . . . . . . 2 . . . . 2 . 1 . . 1 2 1 1 Recycling Units 14 | . 2 . 2 . . . 1 2 1 . . . . 2 . . . . 2 . . . . 1 . 1 . . . . . . Scanalyzers 9 | . . . 1 . . . 2 . . . . . . 1 . . . . 2 . . . . . . 2 . . . . . 1 Garrison Access 8 | . . . . . . . . . 1 . . . . 1 . . . . 1 . . . . 1 . 2 . . 1 . 1 . Total Hacks 1016 | . 17 . 45 3 2 . 63 24 56 1 1 31 . 51 16 1 25 12 148 11 . 18 . 65 . 163 67 1 29 93 40 33 Successful 662 | . 8 . 28 . 2 . 48 17 28 1 1 31 . 30 4 1 25 6 85 11 . 18 . 48 . 112 41 1 13 59 24 20 Failed 347 | . 9 . 17 3 . . 14 7 28 . . . . 20 12 . . 6 62 . . . . 16 . 50 25 . 16 33 16 13 Catastrophic 47 | . . . 2 1 . . 1 . 5 . . . . . 4 . . 1 7 . . . . 5 . 3 6 . 4 4 3 1 Database Lockouts 7 | . . . . . . . 1 . . . . . . 1 . . . . 1 . . . . 1 . 1 1 . . 1 . . Manual 501 | . 17 . 26 . 1 . 27 14 33 1 . . . 29 1 1 . 9 72 1 . . . 40 . 91 42 . 19 52 15 10 Terminals 595 | . 15 . 36 3 . . 34 18 39 . . . . 18 16 1 . 12 53 11 . . . 39 . 119 47 . 22 80 12 20 Fabricators 131 | . . . . . . . . . 9 . . . . 23 . . . . 37 . . . . 7 . 11 20 . 1 . 16 7 Repair Stations 109 | . . . 5 . . . 8 2 5 . . . . . . . . . 29 . . . . 14 . 15 . . 2 13 11 5 Recycling Units 39 | . 2 . 2 . . . 4 4 2 . . . . 6 . . . . 10 . . . . 4 . 5 . . . . . . Scanalyzers 46 | . . . 2 . . . 17 . . . . . . 2 . . . . 14 . . . . . . 10 . . . . . 1 Garrison Access 17 | . . . . . . . . . 1 . . . . 2 . . . . 5 . . . . 1 . 3 . . 4 . 1 . Terminal Hacks 325 | . 3 . 14 . 2 . 17 8 12 1 1 31 . 3 4 1 25 3 19 11 . 18 . 18 . 61 15 1 9 36 3 9 Record 55 | . . . . . 1 . . . . . . 11 . . . . 25 . . 11 . 6 . . . . . 1 . . . . Part Schematic 45 | . 1 . 3 . . . 4 . 4 . . 11 . 1 . . . . 1 . . 4 . 1 . 7 . . 1 5 . 2 Robot Schematic 8 | . . . 1 . . . . . . . . 6 . . . . . . . . . . . . . 1 . . . . . . Robot Analysis 22 | . 2 . 2 . . . . . 2 . . . . . . . . . 1 . . 4 . . . 2 2 . 2 5 . . Prototype ID Bank 16 | . . . . . . . 1 . . . . 3 . . . . . . 1 . . 4 . . . 3 . . . 4 . . Open Door 12 | . . . . . . . . 4 . 1 1 . . . 4 1 . . . . . . . . . . . . . . . 1 Level Access Points 3 | . . . . . . . . . . . . . . . . . . . . . . . . 1 . 1 . . . 1 . . Branch Access Points 7 | . . . . . . . 1 . 1 . . . . . . . . . 1 . . . . 1 . 1 . . 1 . 1 . Emergency Access Points 10 | . . . . . . . 1 . . . . . . . . . . . 2 . . . . 2 . 4 1 . . . . . Machine Index 3 | . . . . . . . . . . . . . . . . . . . . . . . . 1 . 1 . . . 1 . . Terminal Index 11 | . . . . . . . 1 1 1 . . . . . . . . . 1 . . . . 1 . 1 1 . 1 1 1 1 Fabricator Index 3 | . . . . . . . . . . . . . . 1 . . . . . . . . . . . 1 . . 1 . . . Repair Station Index 5 | . . . . . . . . . . . . . . . . . . . 1 . . . . . . . 1 . 1 1 . 1 Scanalyzer Index 1 | . . . . . . . . . . . . . . . . . . . 1 . . . . . . . . . . . . . Garrison Index 1 | . . . . . . . . . . . . . . . . . . . . . . . . . . . . . . 1 . . Alert Level 24 | . . . 3 . . . 4 1 1 . . . . . . . . 1 2 . . . . 1 . 8 1 . . 2 . . Unreport Threat 19 | . . . 2 . . . 2 . 1 . . . . . . . . 1 4 . . . . 1 . 5 2 . . . . 1 Locate Traps 16 | . . . 1 . . . . 1 1 . . . . . . . . . 1 . . . . 2 . 5 . . 1 4 . . Reprogram Traps 3 | . . . . . . . . . . . . . . . . . . . . . . . . . . 1 . . . 2 . . Maintenance Status 3 | . . . . . . . . . . . . . . . . . . . . . . . . 1 . . 1 . . 1 . . Patrol Status 3 | . . . . . . . . . . . . . . . . . . . . . . . . 1 . 1 . . . 1 . . Extermination Status 1 | . . . . . . . . . . . . . . . . . . . . . . . . . . 1 . . . . . . Recall Investigation 2 | . . . . . . . . . . . . . . . . . . . . . . . . . . 1 . . . . . 1 Recall Extermination 7 | . . . . . . . . . . . . . . . . . . . . . . . . 2 . 2 1 . . 1 . 1 Recall Reinforcements 3 | . . . . . . . . . . . . . . . . . . . . . . . . . . 3 . . . . . . Recall Assault 1 | . . . . . . . . . . . . . . . . . . . . . . . . . . . . . 1 . . . Hauler Manifests 11 | . . . 1 . . . 1 1 . . . . . 1 . . . 1 1 . . . . 1 . 2 1 . . 1 . . Registered Components 1 | . . . . . . . . . . . . . . . . . . . . . . . . . . 1 . . . . . . Registered Prototypes 2 | . . . . . . . . . . . . . . . . . . . . . . . . 1 . 1 . . . . . . Zone Layout 26 | . . . 1 . . . 2 . 1 . . . . . . . . . 2 . . . . 1 . 8 4 . . 5 1 1 EX-Prototype ID Bank 1 | . . . . . 1 . . . . . . . . . . . . . . . . . . . . . . . . . . . Fabricator Hacks 67 | . . . . . . . . . 3 . . . . 13 . . . . 13 . . . . 3 . 6 17 . 1 . 7 4 Network Status 12 | . . . . . . . . . 1 . . . . 1 . . . . 3 . . . . 1 . 2 1 . 1 . 1 1 Load Schematic 35 | . . . . . . . . . 2 . . . . 8 . . . . 6 . . . . 2 . 4 8 . . . 3 2 Build 20 | . . . . . . . . . . . . . . 4 . . . . 4 . . . . . . . 8 . . . 3 1 Repair Station Hacks 88 | . . . 4 . . . 7 2 3 . . . . . . . . . 21 . . . . 14 . 11 . . 2 12 8 4 Scan Component 47 | . . . 2 . . . 4 1 2 . . . . . . . . . 11 . . . . 7 . 6 . . 1 6 5 2 Repair 41 | . . . 2 . . . 3 1 1 . . . . . . . . . 10 . . . . 7 . 5 . . 1 6 3 2 Recycling Unit Hacks 7 | . . . . . . . . 1 2 . . . . 1 . . . . 1 . . . . 1 . 1 . . . . . . Report Inventory 2 | . . . . . . . . . . . . . . . . . . . 1 . . . . 1 . . . . . . . . Retrieve Matter 1 | . . . . . . . . . 1 . . . . . . . . . . . . . . . . . . . . . . . Retrieve Components 4 | . . . . . . . . 1 1 . . . . 1 . . . . . . . . . . . 1 . . . . . . Scanalyzer 36 | . . . 2 . . . 16 . . . . . . 2 . . . . 9 . . . . . . 7 . . . . . . Insert Component 17 | . . . 1 . . . 6 . . . . . . 2 . . . . 4 . . . . . . 4 . . . . . . Analyze 19 | . . . 1 . . . 10 . . . . . . . . . . . 5 . . . . . . 3 . . . . . . Garrison Access Hacks 6 | . . . . . . . . . . . . . . 1 . . . . 1 . . . . 1 . 2 . . . . 1 . Seal Access 6 | . . . . . . . . . . . . . . 1 . . . . 1 . . . . 1 . 2 . . . . 1 . Unauthorized Hacks 133 | . 5 . 8 . . . 8 6 8 . . . . 10 . . . 3 21 . . . . 11 . 24 9 . 1 11 5 3 Terminals 81 | . 3 . 6 . . . 5 4 6 . . . . 3 . . . 3 8 . . . . 5 . 16 8 . 1 11 1 1 Track 8 | . . . . . . . . . . . . . . . . . . . . . . . . . . 4 2 . . 2 . . Assimilate 18 | . . . 2 . . . 2 1 2 . . . . . . . . 1 5 . . . . . . 2 3 . . . . . Botnet 41 | . 2 . 2 . . . 2 2 3 . . . . 2 . . . 2 3 . . . . 3 . 7 3 . 1 7 1 1 Disrupt 2 | . . . . . . . . . . . . . . . . . . . . . . . . . . 1 . . . 1 . . Operators 12 | . 1 . 2 . . . 1 1 1 . . . . 1 . . . . . . . . . 2 . 2 . . . 1 . . Fabricators 28 | . . . . . . . . . 2 . . . . 4 . . . . 9 . . . . 3 . 4 1 . . . 4 1 Report 1 | . . . . . . . . . . . . . . . . . . . . . . . . . . . . . . . 1 . Prioritize 6 | . . . . . . . . . 1 . . . . . . . . . 1 . . . . . . . 1 . . . 2 1 Liberate 1 | . . . . . . . . . . . . . . . . . . . 1 . . . . . . . . . . . . . Haulers 5 | . . . . . . . . . . . . . . 1 . . . . 2 . . . . 1 . . . . . . 1 . Recompile 15 | . . . . . . . . . 1 . . . . 3 . . . . 5 . . . . 2 . 4 . . . . . . Repair Stations . | . . . . . . . . . . . . . . . . . . . . . . . . . . . . . . . . . Recycling Units 23 | . 2 . 2 . . . 3 2 . . . . . 3 . . . . 4 . . . . 3 . 4 . . . . . . Monitor 2 | . . . . . . . . . . . . . . . . . . . . . . . . 1 . 1 . . . . . . Reject 6 | . . . . . . . 1 . . . . . . 1 . . . . 2 . . . . 1 . 1 . . . . . . Recyclers 4 | . . . . . . . . . . . . . . 1 . . . . 1 . . . . 1 . 1 . . . . . . Mask 4 | . . . . . . . 1 . . . . . . 1 . . . . 1 . . . . . . 1 . . . . . . Tunnel 7 | . 2 . 2 . . . 1 2 . . . . . . . . . . . . . . . . . . . . . . . . Scanalyzers 1 | . . . . . . . . . . . . . . . . . . . . . . . . . . . . . . . . 1 Researchers 1 | . . . . . . . . . . . . . . . . . . . . . . . . . . . . . . . . 1 Garrison Access . | . . . . . . . . . . . . . . . . . . . . . . . . . . . . . . . . . Data Cores Recovered . | . . . . . . . . . . . . . . . . . . . . . . . . . . . . . . . . . Used . | . . . . . . . . . . . . . . . . . . . . . . . . . . . . . . . . . Hacking Detections 130 | . 6 . 11 1 . . 10 8 16 . . . . 13 6 . . 3 12 . . . . 5 . 9 4 . 4 9 6 7 Full Trace Events 12 | . . . . . . . 1 . 2 . . . . 1 1 . . . . . . . . . . . 1 . 1 . 4 1 Feedback Events 1 | . . . . . . . . . . . . . . . . . . . . . . . . . . . . . . . 1 . Hackware Fried 1 | . . . . . . . . . . . . . . . . . . . . . . . . . . . . . . . 1 . Feedback Blocked . | . . . . . . . . . . . . . . . . . . . . . . . . . . . . . . . . . Robot Schematics Acquired 11 | . . . 1 . . . . . . . . 6 . . . . . . . . . . . . . 1 . . . . . 3 Robots Built . | . . . . . . . . . . . . . . . . . . . . . . . . . . . . . . . . . Authchips . | . . . . . . . . . . . . . . . . . . . . . . . . . . . . . . . . . Time . | . . . . . . . . . . . . . . . . . . . . . . . . . . . . . . . . . Total Robot Build Rating . | . . . . . . . . . . . . . . . . . . . . . . . . . . . . . . . . . Part Schematics Acquired 62 | . 1 . 4 . . . 7 . 4 . . 11 . 1 . . . . 3 . . 4 . 1 . 9 . . 1 5 . 11 Parts Built 28 | . . . . . . . . . . . . . . 7 . . . . 5 . . . . . . . 11 . . . 4 1 Authchips 14 | . . . . . . . . . . . . . . 4 . . . . 3 . . . . . . . 7 . . . . . Time 964 | . . . . . . . . . . . . . . 220 . . . . 289 . . . . . . . 257 . . . 161 37 Total Part Build Rating 165 | . . . . . . . . . . . . . . 34 . . . . 28 . . . . . . . 68 . . . 26 9 Parts Repaired 41 | . . . 2 . . . 3 1 1 . . . . . . . . . 10 . . . . 7 . 5 . . 1 6 3 2 Time 2274 | . . . 64 . . . 339 38 20 . . . . . . . . . 906 . . . . 245 . 212 . . 50 263 72 65 Parts Recycled . | . . . . . . . . . . . . . . . . . . . . . . . . . . . . . . . . . Recycled Matter . | . . . . . . . . . . . . . . . . . . . . . . . . . . . . . . . . . Retrieved Matter 331 | . . . . . . . . . 331 . . . . . . . . . . . . . . . . . . . . . . . Retrieved Components 38 | . . . . . . . . 9 10 . . . . 9 . . . . . . . . . . . 10 . . . . . . Parts Scanalyzed 10 | . . . 1 . . . 4 . . . . . . . . . . . 3 . . . . . . 2 . . . . . . Part Schematics Acquired 9 | . . . 1 . . . 4 . . . . . . . . . . . 2 . . . . . . 2 . . . . . . Parts Damaged 2 | . . . . . . . 1 . . . . . . . . . . . . . . . . . . 1 . . . . . . Bothacking | -11 -10 -10 -9 -9 -9 -8 -8 -8 -7 -7 -7 -7 -6 -6 -6 -6 -6 -6 -5 -5 -5 -5 -4 -4 -4 -4 -4 -4 -3 -3 -2 -2 ------------ Run | Jun Mat Min Mat Min Exi Min Mat Sto Fac Low Low Dat Pro Fac Ext Cet Arc Hub Fac Upp Upp Zhi Pro Fac Was Fac Arm Lab Res Qua Res Tes Used RIF Installer . | . . . . . . . . . . . . . . . . . . . . . . . . . . . . . . . . . Robots Hacked . | . . . . . . . . . . . . . . . . . . . . . . . . . . . . . . . . . Non-combat . | . . . . . . . . . . . . . . . . . . . . . . . . . . . . . . . . . Combat . | . . . . . . . . . . . . . . . . . . . . . . . . . . . . . . . . . Robot Hacks Applied . | . . . . . . . . . . . . . . . . . . . . . . . . . . . . . . . . . Relay Couplers Released 4 | . . . . . . . . . . . . . . . . . . . . . . . . . . . . . 2 . . 2 Machine Destruction 4 | . . . . . . . . . . . . . . . . . . . . . . . . . . . . . 2 . . 2 Fabnet Peak Effective % . | . . . . . . . . . . . . . . . . . . . . . . . . . . . . . . . . . Robots Rewired 24 | . . . . . . . . . . 3 . . . . 20 . . . . . 1 . . . . . . . . . . . Allies Hacked . | . . . . . . . . . . . . . . . . . . . . . . . . . . . . . . . . . Hacks Repelled . | . . . . . . . . . . . . . . . . . . . . . . . . . . . . . . . . . Allies | -11 -10 -10 -9 -9 -9 -8 -8 -8 -7 -7 -7 -7 -6 -6 -6 -6 -6 -6 -5 -5 -5 -5 -4 -4 -4 -4 -4 -4 -3 -3 -2 -2 -------- Run | Jun Mat Min Mat Min Exi Min Mat Sto Fac Low Low Dat Pro Fac Ext Cet Arc Hub Fac Upp Upp Zhi Pro Fac Was Fac Arm Lab Res Qua Res Tes Total Allies 81 | . . . 1 3 . . 1 12 1 3 . . . . 31 3 . . 4 . 1 . . . 20 1 . . . . . . Largest Group 21 | . . . 1 3 3 . 1 12 7 3 . . . . 21 12 7 . 3 . 1 1 1 . 20 19 . . . . . . Highest-Rated Group 736 | . . . 10 40 40 . 10 286 125 93 . . . . 736 543 289 . 108 . 30 30 20 . 733 683 . . . . . . Highest-Rated Ally 159 | . . . 10 16 16 . 10 100 29 31 . . . . 159 159 96 . 49 . 30 30 20 . 50 46 . . . . . . Total Orders 277 | . . . . . 4 . 17 5 6 4 . . . . 74 20 5 . 14 46 36 6 15 18 . 7 . . . . . . STAY 68 | . . . . . 3 . 9 2 4 2 . . . . 4 7 . . 7 10 6 3 2 5 . 4 . . . . . . ROAM 8 | . . . . . . . . . . . . . . . 4 . . . . 1 . . . 2 . 1 . . . . . . FOLLOW 52 | . . . . . 1 . 8 3 2 2 . . . . 10 8 2 . 7 . 3 3 1 . . 2 . . . . . . EXPLORE 50 | . . . . . . . . . . . . . . . 21 1 1 . . 11 7 . 5 4 . . . . . . . . RETURN 99 | . . . . . . . . . . . . . . . 35 4 2 . . 24 20 . 7 7 . . . . . . . . Ally Attacks 1122 | . . . . . 83 . . 69 80 23 . . . . 323 78 57 . 20 136 67 . 26 47 . 113 . . . . . . Total Damage 20304 | . . . . . 414 . . 1606 803 317 . . . . 6250 1979 1909 . 631 2024 1276 . 478 627 . 1990 . . . . . . Kills 155 | . . . . . 2 . . 17 11 2 . . . . 44 14 6 . 6 19 10 . 5 5 . 14 . . . . . . Allies Corrupted 1 | . . . . . . . . . . . . . . . 1 . . . . . . . . . . . . . . . . . Allies Melted 2 | . . . . . . . . 1 . . . . . . . . 1 . . . . . . . . . . . . . . . Intel | -11 -10 -10 -9 -9 -9 -8 -8 -8 -7 -7 -7 -7 -6 -6 -6 -6 -6 -6 -5 -5 -5 -5 -4 -4 -4 -4 -4 -4 -3 -3 -2 -2 ------- Run | Jun Mat Min Mat Min Exi Min Mat Sto Fac Low Low Dat Pro Fac Ext Cet Arc Hub Fac Upp Upp Zhi Pro Fac Was Fac Arm Lab Res Qua Res Tes Robot Analysis Total 22 | . 2 . 2 . . . . . 2 . . . . . . . . . 1 . . 4 . . . 2 2 . 2 5 . . Derelict Logs Recovered 15 | . . 3 . 2 . . . . . 2 2 . 2 . . . . . . 3 1 . . . . . . . . . . . Drone Launches 107 | . . . . . . . . . . . . . . . 46 5 4 . . 19 19 . 6 8 . . . . . . . . Drone Recoveries 105 | . . . . . . . . . . . . . . . 46 5 4 . . 19 19 . 6 6 . . . . . . . . Exploration | -11 -10 -10 -9 -9 -9 -8 -8 -8 -7 -7 -7 -7 -6 -6 -6 -6 -6 -6 -5 -5 -5 -5 -4 -4 -4 -4 -4 -4 -3 -3 -2 -2 ------------- Run | Jun Mat Min Mat Min Exi Min Mat Sto Fac Low Low Dat Pro Fac Ext Cet Arc Hub Fac Upp Upp Zhi Pro Fac Was Fac Arm Lab Res Qua Res Tes Turns Passed 67428 | 230 1587 1021 4497 1863 4653 1257 6023 2608 2048 3634 3074 1373 2664 2536 1750 470 209 2399 2964 2586 1676 712 1289 959 583 4563 1803 613 991 1475 1638 1680 Spaces Moved 27997 | 110 946 585 1557 753 1767 478 2061 994 999 1599 1203 478 1037 1146 671 174 60 878 1382 1201 889 369 726 426 344 2177 610 253 438 547 542 597 Core 247 | 1 . . . . . . . . . . . . . . . . . . . . . . . . . 245 . . . . . 1 Treads 20183 | 102 372 . 1349 753 1767 478 2061 651 75 900 1203 478 1037 217 . 59 60 878 1382 1201 889 369 726 426 344 1932 474 . . . . . Legs 34 | . . . . . . . . . . . . . . . . . . . . . . . . . . . . . . . . 34 Wheels 7533 | 7 574 585 208 . . . . 343 924 699 . . . 929 671 115 . . . . . . . . . . 136 253 438 547 542 562 Hover . | . . . . . . . . . . . . . . . . . . . . . . . . . . . . . . . . . Flight . | . . . . . . . . . . . . . . . . . . . . . . . . . . . . . . . . . Fastest Speed 50 | 50 130 130 130 240 160 240 240 135 145 145 240 160 245 160 160 160 160 160 160 160 160 160 160 160 160 50 110 150 170 170 130 100 Average Speed 191 | 153 142 130 228 240 245 240 240 206 152 198 240 239 245 178 167 181 160 202 163 174 160 160 161 168 160 151 157 162 170 170 170 154 Slowest Speed 3050 | 160 320 130 320 240 480 240 240 490 240 240 240 245 245 245 175 240 160 240 240 240 160 240 240 240 240 240 240 170 170 170 210 3050 Overloaded Moves . | . . . . . . . . . . . . . . . . . . . . . . . . . . . . . . . . . Propulsion Burnouts . | . . . . . . . . . . . . . . . . . . . . . . . . . . . . . . . . . Robots Hopped . | . . . . . . . . . . . . . . . . . . . . . . . . . . . . . . . . . Cave-ins Triggered 1 | . . . . . . 1 . . . . . . . . . . . . . . . . . . . . . . . . . . Teleports 3 | . . . . . . . . . . . . . . . . . . . . . . . . . . . 1 . . . 1 1 Exploration Rate (%) 70 | 6 98 100 99 99 90 96 83 92 33 99 93 80 78 28 97 72 89 59 38 99 97 63 96 15 95 45 28 94 16 74 14 57 Regions Visited 32 Branch Regions 21 Pre-discovered Areas 17 | . 2 3 2 . 1 . 1 2 . 1 . 1 . . . . . . . 1 . 3 . . . . . . . . . . Known Exits Taken 24 | . . . 1 . 1 . 1 . 1 1 1 1 1 1 1 1 1 1 1 1 1 1 1 . . 1 1 1 1 1 1 . Unknown Exits Taken 6 | 1 1 1 . 1 . 1 . 1 . . . . . . . . . . . . . . . . . . . . . . . . Scrap Searched 23 | . . 1 . 3 . 1 . . . 8 3 . 3 . . . . . . 2 1 . 1 . . . . . . . . . Spaces Dug 488 | . . 64 8 26 . . 12 2 33 52 14 . . 64 . . . 6 33 10 3 1 . 19 . 53 11 . 7 36 13 21 Terrain Destroyed 1818 | . . 81 35 49 23 47 41 51 142 55 54 . . 109 . 2 . 378 182 33 6 1 . 27 . 132 40 . 16 47 107 160 Melee 242 | . . . 1 . . . 1 2 33 14 11 . . 29 . . . . 33 . . . . 18 . 40 9 . 6 11 13 21 Projectile 331 | . . . . 6 9 9 30 17 1 9 25 . . 22 . . . 23 20 33 6 1 . 9 . 64 17 . 10 14 5 1 AOE 1205 | . . 81 34 43 13 38 10 32 108 32 18 . . 58 . . . 349 127 . . . . . . 28 14 . . 22 88 110 Terrain Rammed . | . . . . . . . . . . . . . . . . . . . . . . . . . . . . . . . . . Walls Destroyed . | . . . . . . . . . . . . . . . . . . . . . . . . . . . . . . . . . Machines Disabled . | . . . . . . . . . . . . . . . . . . . . . . . . . . . . . . . . . Actions | -11 -10 -10 -9 -9 -9 -8 -8 -8 -7 -7 -7 -7 -6 -6 -6 -6 -6 -6 -5 -5 -5 -5 -4 -4 -4 -4 -4 -4 -3 -3 -2 -2 --------- Run | Jun Mat Min Mat Min Exi Min Mat Sto Fac Low Low Dat Pro Fac Ext Cet Arc Hub Fac Upp Upp Zhi Pro Fac Was Fac Arm Lab Res Qua Res Tes Total 38200 | 141 1082 740 2294 791 1990 533 2971 1334 1319 1934 1305 649 1143 1486 1212 266 166 1324 1933 1630 1119 453 837 624 373 3063 1355 381 614 970 1074 1094 Wait 5688 | 8 40 78 478 5 37 8 711 107 111 136 12 37 82 160 233 8 96 256 351 377 192 16 106 130 . 439 617 51 96 279 270 161 Move 27966 | 109 945 584 1556 752 1766 477 2060 993 998 1598 1202 477 1036 1145 670 173 59 877 1381 1200 888 368 725 426 343 2176 609 252 437 546 541 597 Hop . | . . . . . . . . . . . . . . . . . . . . . . . . . . . . . . . . . Pick Up 456 | 2 21 1 46 3 27 3 35 30 15 16 2 23 3 17 4 10 . 20 23 1 . 12 . 10 2 46 17 10 3 16 19 19 Fast Attach 244 | 8 8 . 18 5 7 2 10 20 5 7 2 8 . 4 4 7 . 8 4 2 . 6 . 5 9 36 9 7 1 7 12 23 Attach 281 | . 1 3 18 . 18 4 18 29 9 10 1 14 . 10 2 1 6 7 12 . . . . 6 1 22 12 6 7 5 28 31 Detach 144 | 1 3 . 4 . 15 . 6 10 7 4 . 9 . 4 . . 1 5 3 2 . . . 1 . 22 7 5 4 2 17 12 Swap 522 | . 4 11 16 6 3 5 11 14 34 42 23 11 13 44 10 13 1 31 33 8 6 8 6 14 . 54 16 3 17 12 32 21 Drop 440 | . 5 . 46 8 29 3 27 14 17 17 5 27 3 14 9 19 . 21 12 3 . 17 . 5 13 32 10 9 2 14 24 35 Fire 1493 | 13 52 63 93 10 54 26 79 89 51 54 47 2 6 54 53 35 3 91 69 32 9 2 . 8 . 144 46 . 35 68 95 110 Melee 616 | . . . 2 . 34 . 8 23 72 23 11 40 . 34 . . . . 45 5 . 24 . 19 3 89 12 38 12 21 36 65 Ram . | . . . . . . . . . . . . . . . . . . . . . . . . . . . . . . . . . Kick 1 | . . . . . . . . . . . . . . . . . . . . . . . . . . . . . . . . 1 Crush 48 | . 3 . 17 2 . 5 6 3 . . . . . . . . . 8 . . 1 . . . . 3 . . . . . . Escape Stasis 45 | . . . . . . . . 2 . . . . . . 24 . . . . . . . . . . . . . . . . 19 Rewire 255 | . . . . . . . . . . 27 . . . . 203 . . . . . 23 . . . 2 . . . . . . . Trap 1 | . . . . . . . . . . . . 1 . . . . . . . . . . . . . . . . . . . . Miscellaneous . | . . . . . . . . . . . . . . . . . . . . . . . . . . . . . . . . . Route ------- -11/Junkyard -10/Materials (discovered 4 exits: *Mat x3 / [*Min]) -10/Mines (discovered 2 exits: *Mat x2) -9/Materials (discovered 4 exits: *Mat x3 / *Min) -9/Mines (discovered 3 exits: *Mat x2 / *Exi) -9/Exiles -8/Mines (discovered 2 exits: *Mat x2) -8/Materials (discovered 4 exits: *Fac x3 / *Sto) -8/Storage (discovered 2 exits: *Fac / [*Rec]) -7/Factory (discovered 4 exits: *Fac x2 / *Low x2) -7/Lower Caves -7/Lower Caves (discovered 2 exits: *Fac / *Dat) -7/Data Miner -6/Proximity Caves -6/Factory (discovered 2 exits: Low / *Ext) -6/Extension (discovered 2 exits: *Fac / *Cet) -6/Cetus (discovered 2 exits: *Fac / *Arc) -6/Archives (discovered 3 exits: *Fac / *Hub x2) -6/Hub_04(d) (discovered 3 exits: *Fac x3) -5/Factory (discovered 2 exits: *Upp x2) -5/Upper Caves -5/Upper Caves (discovered 2 exits: *Fac / *Zhi) -5/Zhirov -4/Proximity Caves -4/Factory (discovered 7 exits: Res x4 / *Upp x2 / Arm) -4/Waste -4/Factory (discovered 7 exits: *Res x4 / *Upp x2 / *Arm) -4/Armory -4/Lab -3/Research (discovered 2 exits: *Qua x2) -3/Quarantine -2/Research (discovered 2 exits: *Tes x2) -2/Testing History --------- Turn | Location | Event 74 | -11/Junkyard | Discovered new exit (range 15) 231 | -11/Junkyard | Entered Materials 301 | -10/Materials | Build established: Mutant 363 | -10/Materials | Discovered new exit (range 5) 625 | -10/Materials | Discovered new exit (range 8) 1272 | -10/Materials | Discovered new exit (range 8) 1420 | -10/Materials | Discovered new exit (range 3) 1818 | -10/Materials | Entered Mines 1967 | -10/Mines | Excavation squad dispatched 1967 | -10/Mines | A large section of the Mines collapsed 2113 | -10/Mines | Discovered new exit (range 12) 2388 | -10/Mines | Discovered new exit (range 7) 2412 | -10/Mines | Learned location of Mines (-8) 2552 | -10/Mines | Core integrity fell below 50% 2808 | -10/Mines | Learned location of Storage (-8) 2839 | -10/Mines | Entered Materials 2839 | -9/Materials | Evolved 2 slots: Propulsion x1, Utility x1 2840 | -9/Materials | Identified exit to Mines 3368 | -9/Materials | Lost 3 parts (1p2n) 3790 | -9/Materials | Build established: Scavenger-Mutant 3793 | -9/Materials | Discovered new exit (range 16) 4712 | -9/Materials | Repaired Hrd. Light Armor Plating 5486 | -9/Materials | Discovered new exit (range 5) 5774 | -9/Materials | Core integrity fell below 50% 5885 | -9/Materials | Discovered new exit (range 9) 6764 | -9/Materials | Repaired Hrd. Light Armor Plating 7336 | -9/Materials | Entered Mines 7344 | -9/Mines | Learned Materials emergency access door positions 7439 | -9/Mines | Received a Rocket Launcher from a helpful Derelict 7476 | -9/Mines | Deemed a non-threat by the Exiles lab entrance 7588 | -9/Mines | Assembled infested the area 7663 | -9/Mines | Learned location of 1 exit from Materials 7714 | -9/Mines | Found a damaged Exp. Sensor Array with a note attached 7720 | -9/Mines | Found Prototype Device 7720 | -9/Mines | Identified Exp. Sensor Array 8352 | -9/Mines | Discovered new exit (range 6) 8428 | -9/Mines | Discovered new exit (range 11) 9019 | -9/Mines | Assisted by bots powering up and referring to "LRC-V3" 9189 | -9/Mines | Discovered new exit (range 5) 9199 | -9/Mines | Entered Exiles 9199 | -9/Exiles | Accompanied by 3 allies 9200 | -9/Exiles | Identified exit to Mines 9375 | -9/Exiles | Met 8R-AWN 9413 | -9/Exiles | Met EX-HEX 9545 | -9/Exiles | Met EX-DEC 9588 | -9/Exiles | Learned location of Zion (-6) 9758 | -9/Exiles | Met EX-BIN 9780 | -9/Exiles | Aligned with FarCom system 9782 | -9/Exiles | Given EX-Vault access code 9822 | -9/Exiles | Opened EX-Vault 9837 | -9/Exiles | Found Gui. Plasma Cannon 9875 | -9/Exiles | Warned to stay clear of 0b10 Research branches 9984 | -9/Exiles | Build established: Mutant 10014 | -9/Exiles | Attacked by the Exiles 10017 | -9/Exiles | Destroyed EX-HEX 10098 | -9/Exiles | Allies destroyed 8R-AWN 10113 | -9/Exiles | Lost 4 parts (2n2u) 10352 | -9/Exiles | Found Prototype Ballistic Gun 10352 | -9/Exiles | Identified 8R-AWN's Boregun 10582 | -9/Exiles | Build established: Scavenger-Mutant 10585 | -9/Exiles | Destroyed EX-BIN 10611 | -9/Exiles | Destroyed EX-DEC 10634 | -9/Exiles | Found Deploy-a-Sentry 10669 | -9/Exiles | Found Prototype Device 10669 | -9/Exiles | Identified System Purifier 11080 | -9/Exiles | Build established: Mutant 13852 | -9/Exiles | Entered Mines 13999 | -8/Mines | Core integrity fell below 20% 14252 | -8/Mines | Build established: Scavenger-Mutant 14365 | -8/Mines | Crushed by falling debris 14660 | -8/Mines | Build established: Mutant 14672 | -8/Mines | Discovered new exit (range 11) 14975 | -8/Mines | Discovered new exit (range 5) 15109 | -8/Mines | Entered Materials 15109 | -8/Materials | Evolved 2 slots: Propulsion x1, Utility x1 15110 | -8/Materials | Identified exit to Storage 15565 | -8/Materials | Build established: Scavenger-Mutant 15889 | -8/Materials | Discovered new exit (range 7) 17291 | -8/Materials | Discovered new exit (range 14) 17667 | -8/Materials | Lost 3 parts (1p1n1u) 18211 | -8/Materials | Build established: Hacker-Mutant 18319 | -8/Materials | Discovered new exit (range 17) 18319 | -8/Materials | Central database locked down 18785 | -8/Materials | Repaired Broken Adv. Weapon Cycler 18894 | -8/Materials | Repaired System Purifier 19718 | -8/Materials | Repaired Broken Exp. Sensor Array 20234 | -8/Materials | Build established: Scavenger-Mutant 20867 | -8/Materials | Build established: Mutant 21132 | -8/Materials | Entered Storage 21435 | -8/Storage | Build established: Scavenger-Mutant 21521 | -8/Storage | Lost 3 parts (2n1w) 21649 | -8/Storage | Met 01-MTF 21830 | -8/Storage | Discovered new exit (range 7) 21847 | -8/Storage | Assisted by bots powering up and referring to "LRC-V3" 22141 | -8/Storage | Build established: Commander-Mutant 22332 | -8/Storage | First assault squad dispatched 22431 | -8/Storage | Core integrity fell below 50% 22453 | -8/Storage | Lost 16 parts (1p7n5u3w) 22726 | -8/Storage | Discovered new exit (range 16) 22777 | -8/Storage | Core integrity fell below 20% 22804 | -8/Storage | Lost 14 parts (1p5n3u5w) 23119 | -8/Storage | Repaired Arm. Treads? 23740 | -8/Storage | Entered Factory 23740 | -7/Factory | Accompanied by 7 allies 23740 | -7/Factory | Evolved 2 slots: Utility x1, Weapon x1 23918 | -7/Factory | Garrison activated, responded to threat 24044 | -7/Factory | Discovered new exit (range 4) 24048 | -7/Factory | Identified exit to Lower Caves 24274 | -7/Factory | Discovered new exit (range 12) 24297 | -7/Factory | Identified exit to Factory 24385 | -7/Factory | Build established: Hacker-Mutant 25058 | -7/Factory | Discovered exit to Factory (range 14) 25690 | -7/Factory | Repaired Prc. Beam Rifle 25740 | -7/Factory | First assault squad dispatched 25788 | -7/Factory | Entered Lower Caves 26093 | -7/Lower Caves | Encountered a Warlord checkpoint 26180 | -7/Lower Caves | Build established: Skirmisher 26616 | -7/Lower Caves | Attracted the attention of an 0b10 checkpoint 26834 | -7/Lower Caves | Acquired the password to a Derelict Tinkerer's latest research 26851 | -7/Lower Caves | Found Prototype Special Weapon 26896 | -7/Lower Caves | Identified exit to Lower Caves 26956 | -7/Lower Caves | Attacked by a delusional Derelict stockpiling Unaware 27230 | -7/Lower Caves | Build established: Scavenger-Mutant 27580 | -7/Lower Caves | Build established: Scavenger-Skirmisher 27664 | -7/Lower Caves | Caught by Unaware searching for contraband prototypes 28062 | -7/Lower Caves | Build established: Scavenger-Mutant 28949 | -7/Lower Caves | Identified Molecular Deconstructor 29422 | -7/Lower Caves | Entered another Lower Caves area 29435 | -7/Lower Caves | Learned Factory terminal intel 29507 | -7/Lower Caves | Discovered exit to Factory (range 12) 29756 | -7/Lower Caves | Build established: Scavenger-Skirmisher 31390 | -7/Lower Caves | Learned 4 Factory zone layouts 31833 | -7/Lower Caves | Discovered new exit (range 5) 31845 | -7/Lower Caves | Identified exit to Data Miner 31848 | -7/Lower Caves | Build established: Scavenger-Mutant 32460 | -7/Lower Caves | Build established: Scavenger-Tank 32496 | -7/Lower Caves | Entered Data Miner 32496 | -7/Data Miner | Discovered new exit (range 6) 32542 | -7/Data Miner | Met Data Miner 32590 | -7/Data Miner | Learned location of Section 7 (-2) 32590 | -7/Data Miner | Acquired the access code to Warlord's prototype stash 32626 | -7/Data Miner | Received God Mode back door access code from Data Miner 32865 | -7/Data Miner | Identified exit to Proximity Caves 32956 | -7/Data Miner | Build established: Scavenger-Mutant 33017 | -7/Data Miner | Destroyed Data Miner 33021 | -7/Data Miner | Data Conduit disabled 33268 | -7/Data Miner | Found Prototype Device 33268 | -7/Data Miner | Identified Exp. Thermal Shield 33321 | -7/Data Miner | Found Prototype Hackware 33324 | -7/Data Miner | Found Prototype Hackware 33682 | -7/Data Miner | Build established: Scavenger-Tank 33869 | -7/Data Miner | Entered Proximity Caves 34540 | -6/Proximity Caves | Build established: Skirmisher 34670 | -6/Proximity Caves | Spotter reported a threat 35293 | -6/Proximity Caves | Learned Factory stockpile data 35697 | -6/Proximity Caves | Discovered exit to Factory (range 16) 36533 | -6/Proximity Caves | Entered Factory 36533 | -6/Factory | Evolved 2 slots: Utility x2 36534 | -6/Factory | Identified exit to Lower Caves 36537 | -6/Factory | Loaded intel: 28 terminal locations 36840 | -6/Factory | Discovered new exit (range 11) 36852 | -6/Factory | Build established: Derelict-Mutant 37916 | -6/Factory | Build established: Hacker-Mutant 37962 | -6/Factory | Central database locked down 38631 | -6/Factory | Fabricated Combat Drone Bay (x1) 38673 | -6/Factory | Fabricated Powered Armor (x2) 38720 | -6/Factory | Fabricated Hyp. Gauss Rifle (x2) 38767 | -6/Factory | Fabricated Hyp. Gauss Rifle (x2) 38851 | -6/Factory | Identified Quantum Router 38851 | -6/Factory | Identified Deep Network Scanner 38908 | -6/Factory | Build established: Mutant 39067 | -6/Factory | Identified exit to Extension 39069 | -6/Factory | Entered Extension 39384 | -6/Extension | Rescued a captive Derelict 39426 | -6/Extension | Rescued a captive Derelict 39427 | -6/Extension | Rescued a captive Derelict 39636 | -6/Extension | Rescued A7 39707 | -6/Extension | Disrupted transfer network 39843 | -6/Extension | Allies destroyed B-75 Beast 39861 | -6/Extension | Allies destroyed B-75 Beast 39902 | -6/Extension | Rescued a captive Derelict 39902 | -6/Extension | Rescued a captive Derelict 39972 | -6/Extension | Rescued a captive Derelict 39986 | -6/Extension | Rescued a captive Derelict 40056 | -6/Extension | Build established: Commander-Tank 40069 | -6/Extension | Rescued a captive Derelict 40119 | -6/Extension | First assault squad dispatched 40296 | -6/Extension | Rescued a captive Derelict 40304 | -6/Extension | Discovered new exit (range 51) 40304 | -6/Extension | Discovered new exit (range 48) 40442 | -6/Extension | Rescued a captive Derelict 40541 | -6/Extension | Build established: Commander-Mutant 40577 | -6/Extension | Identified exit to Cetus 40819 | -6/Extension | Entered Cetus 40819 | -6/Cetus | Accompanied by 12 allies (A7) 40824 | -6/Cetus | Acquired a Cetus Manufacturing Module code from A7 40847 | -6/Cetus | Spotted Cetus Guard 40847 | -6/Cetus | Spotted Cetus Guard 40850 | -6/Cetus | Spotted Cetus Guard 40850 | -6/Cetus | Allies destroyed Cetus Guard 40855 | -6/Cetus | Allies destroyed Cetus Guard 40858 | -6/Cetus | Allies destroyed Cetus Guard 40863 | -6/Cetus | Allies destroyed Cetus Guard 40975 | -6/Cetus | Started Cetus Manufacturing Module 40987 | -6/Cetus | Escorted A7 to Cetus Mainframe 40999 | -6/Cetus | Discovered new exit (range 23) 41000 | -6/Cetus | Manufactured an Enhanced Grunt 41007 | -6/Cetus | Discovered new exit (range 38) 41007 | -6/Cetus | Spotted Cetus Guard 41011 | -6/Cetus | Spotted Cetus Guard 41014 | -6/Cetus | Spotted Cetus Guard 41025 | -6/Cetus | Manufactured an Enhanced Grunt 41027 | -6/Cetus | Spotted Cetus Guard 41032 | -6/Cetus | Destroyed Cetus Guard 41034 | -6/Cetus | Allies destroyed Cetus Guard 41036 | -6/Cetus | Allies destroyed Cetus Guard 41041 | -6/Cetus | Allies destroyed Cetus Guard 41050 | -6/Cetus | Manufactured an Enhanced Grunt 41050 | -6/Cetus | Cetus Manufacturing Module disabled 41195 | -6/Cetus | Destroyed A7 41200 | -6/Cetus | Extracted ID and sensor layout for unrecognized location from A7's data core 41224 | -6/Cetus | Found Prototype Protection 41224 | -6/Cetus | Identified Med. Regenerative Plating 41271 | -6/Cetus | Identified exit to Archives 41289 | -6/Cetus | Entered Archives 41289 | -6/Archives | Accompanied by 7 allies 41295 | -6/Archives | Discovered new exit (range 25) 41309 | -6/Archives | Met Zhirov 41315 | -6/Archives | Reinforcements dispatched to Archives 41323 | -6/Archives | Unable to access archive contents 41323 | -6/Archives | Unable to access archive contents 41336 | -6/Archives | Discovered new exit (range 26) 41339 | -6/Archives | Discovered new exit (range 18) 41341 | -6/Archives | Read partially decrypted archive contents 41360 | -6/Archives | Reinforcements dispatched to Archives 41380 | -6/Archives | Zhirov detonated Archives 41393 | -6/Archives | Identified exit to Hub_04(d) 41411 | -6/Archives | Lost 4 parts (1p2u1w) 41498 | -6/Archives | Entered Hub_04(d) 41740 | -6/Hub_04(d) | Discovered new exit (range 16) 41853 | -6/Hub_04(d) | Identified exit to Factory 42008 | -6/Hub_04(d) | Discovered exit to Factory (range 12) 42138 | -6/Hub_04(d) | Discovered exit to Factory (range 5) 42844 | -6/Hub_04(d) | Build established: Scavenger-Mutant 43336 | -6/Hub_04(d) | Network Hub disabled 43450 | -6/Hub_04(d) | Build established: Scavenger-Tank 43575 | -6/Hub_04(d) | Spotted Lightning 43577 | -6/Hub_04(d) | Spotted Lightning 43578 | -6/Hub_04(d) | Destroyed Lightning 43581 | -6/Hub_04(d) | Network Hub disabled 43581 | -6/Hub_04(d) | Spotted Lightning 43608 | -6/Hub_04(d) | Destroyed Lightning 43618 | -6/Hub_04(d) | Destroyed Lightning 43638 | -6/Hub_04(d) | Found Prototype Device 43638 | -6/Hub_04(d) | Identified Exp. Phase Shifter 43649 | -6/Hub_04(d) | Found Prototype Device 43649 | -6/Hub_04(d) | Identified Exp. EM Disruption Field 43733 | -6/Hub_04(d) | Found Prototype Energy Cannon 43733 | -6/Hub_04(d) | Identified EMDS 43780 | -6/Hub_04(d) | Found Exp. Phase Shifter 43788 | -6/Hub_04(d) | System corruption reached 10% 43793 | -6/Hub_04(d) | Found EMDS 43800 | -6/Hub_04(d) | Found Exp. Targeting Computer 43809 | -6/Hub_04(d) | Found Exp. EM Disruption Field 43832 | -6/Hub_04(d) | Found Exp. Targeting Computer 43897 | -6/Hub_04(d) | Entered Factory 43897 | -5/Factory | Evolved 2 slots: Utility x2 44404 | -5/Factory | Build established: Scavenger-Mutant 44629 | -5/Factory | Repaired Broken Exp. Thermal Shield? 44664 | -5/Factory | Repaired System Purifier 44756 | -5/Factory | Repaired Exp. EM Disruption Field 44779 | -5/Factory | Repaired Centrium Heavy Treads 44869 | -5/Factory | Repaired Quantum Reactor? 44897 | -5/Factory | Repaired Adv. Weapon Cycler? 45008 | -5/Factory | Repaired Centrium Heavy Treads 45045 | -5/Factory | Repaired Centrium Medium Armor Plating 45053 | -5/Factory | Repaired Powered Armor? 45091 | -5/Factory | Repaired Powered Armor 45337 | -5/Factory | Central database locked down 45337 | -5/Factory | Identified exit to Upper Caves 45924 | -5/Factory | P-70 Sage assimilated allied Y-64 Sentinel 46018 | -5/Factory | Destroyed 8 combat bots 46186 | -5/Factory | Fabricated Hyp. Gauss Cannon (x2) 46272 | -5/Factory | Fabricated Combat Drone Bay (x1) 46348 | -5/Factory | Fabricated Exp. Utility Shielding (x1) 46424 | -5/Factory | Fabricated Exp. Utility Shielding (x1) 46860 | -5/Factory | Spotted B-75 Beast 46861 | -5/Factory | Entered Upper Caves 47420 | -5/Upper Caves | Discovered new exit (range 105) 47440 | -5/Upper Caves | Build established: Scavenger-Tank 47778 | -5/Upper Caves | Learned 12 Factory zone layouts 47790 | -5/Upper Caves | Learned Armory security intel 47790 | -5/Upper Caves | Learned Extension security intel 47790 | -5/Upper Caves | Learned Extension stockpile data 47790 | -5/Upper Caves | Learned Armory emergency access door positions 47790 | -5/Upper Caves | Learned 6 Proximity Caves zone layouts 47790 | -5/Upper Caves | Learned 8 Factory zone layouts 47790 | -5/Upper Caves | Learned location of Armory (-4) 48048 | -5/Upper Caves | Build established: Scavenger-Mutant 48112 | -5/Upper Caves | Learned 8 Factory zone layouts 48596 | -5/Upper Caves | Identified exit to Upper Caves 49447 | -5/Upper Caves | Entered another Upper Caves area 49591 | -5/Upper Caves | Discovered new exit (range 7) 49646 | -5/Upper Caves | Attracted the attention of an 0b10 outpost 49660 | -5/Upper Caves | Identified exit to Factory 49920 | -5/Upper Caves | Build established: Scavenger-Tank 50222 | -5/Upper Caves | Allies destroyed B-75 Beast 50440 | -5/Upper Caves | Discovered new exit (range 10) 50453 | -5/Upper Caves | Identified exit to Zhirov 50579 | -5/Upper Caves | Learned Factory stockpile data 51123 | -5/Upper Caves | Entered Zhirov 51123 | -5/Zhirov | Accompanied by 1 ally 51123 | -5/Zhirov | Discovered new exit (range 3) 51181 | -5/Zhirov | Learned location of Testing (-2) 51231 | -5/Zhirov | Found Alien Artifact 51231 | -5/Zhirov | Identified Integrated Reactor 51231 | -5/Zhirov | Installed Integrated Reactor, increased core energy generation (+10) 51497 | -5/Zhirov | Found Alien Artifact 51573 | -5/Zhirov | Build established: Scavenger-Mutant 51625 | -5/Zhirov | Identified exit to Proximity Caves 51801 | -5/Zhirov | Cloak Generator disabled 51835 | -5/Zhirov | Entered Proximity Caves 51835 | -4/Proximity Caves | Accompanied by 1 ally 52209 | -4/Proximity Caves | Build established: Scavenger-Tank 52927 | -4/Proximity Caves | Discovered exit to Factory (range 10) 53124 | -4/Proximity Caves | Entered Factory 53124 | -4/Factory | Evolved 2 slots: Utility x2 53125 | -4/Factory | Identified exit to Upper Caves 53126 | -4/Factory | Identified exit to Research 53239 | -4/Factory | Identified exit to Armory 53381 | -4/Factory | Central database locked down 53514 | -4/Factory | Build established: Hacker-Mutant 53524 | -4/Factory | Repaired Centrium Heavy Treads 53638 | -4/Factory | Repaired Centrium Heavy Treads? 53682 | -4/Factory | Repaired Powered Armor? 53693 | -4/Factory | Repaired Hardcell Cannon? 53746 | -4/Factory | Repaired Quantum Reactor 53754 | -4/Factory | Repaired Adv. Shield Generator? 53776 | -4/Factory | Repaired Exp. Heat Sink? 54083 | -4/Factory | Sucked down chute 54083 | -4/Factory | Entered Waste 54084 | -4/Waste | Joined by Warlord forces that had cleared the area 54512 | -4/Waste | Discovered new exit (range 14) 54662 | -4/Waste | Identified exit to Factory 54666 | -4/Waste | Entered Factory 54666 | -4/Factory | Accompanied by 19 allies 54782 | -4/Factory | Discovered exit to Upper Caves (range 7) 55564 | -4/Factory | Repaired Rnf. Quantum Reactor 55756 | -4/Factory | Central database locked down 55842 | -4/Factory | Identified Transdimensional Reconstructor 55907 | -4/Factory | Build established: Wizard-Mutant 57218 | -4/Factory | Lost 3 parts (1u2w) 57219 | -4/Factory | Destroyed 9 combat bots 57480 | -4/Factory | Lost 5 parts (1p1n2u1w) 57562 | -4/Factory | Repaired Centrium Heavy Treads 57682 | -4/Factory | Core integrity fell below 50% 58356 | -4/Factory | Lost 5 parts (1n3u1w) 58596 | -4/Factory | Build established: Hacker-Mutant 58657 | -4/Factory | Repaired Broken Hvy. Mass Driver 58711 | -4/Factory | Repaired Centrium Heavy Treads 58862 | -4/Factory | Repaired Adv. Cooling System? 59229 | -4/Factory | Entered Armory 59247 | -4/Armory | Found Fusion Bomb Launcher 59437 | -4/Armory | Fabricated Hvy. Hardcell Cannon (x1) 60005 | -4/Armory | Build established: Wizard-Mutant 60044 | -4/Armory | Central database locked down 60223 | -4/Armory | Fabricated Centrium Wheel (x2) 60253 | -4/Armory | Fabricated Centrium Wheel? 60360 | -4/Armory | Fabricated Humpback (x1) 60384 | -4/Armory | Fabricated Hvy. Reactive Plating? 60568 | -4/Armory | Fabricated Adv. Hardlight Generator (x2) 60627 | -4/Armory | Fabricated Exp. Hacking Suite? 60861 | -4/Armory | Fabricated Exp. Utility Shielding? 60889 | -4/Armory | Warped through subspace to slip node 60889 | -4/Armory | Discovered new exit (range 1) 60889 | -4/Armory | Identified exit to Lab 61032 | -4/Armory | Entered Lab 61032 | -4/Lab | Discovered exit to Research (range 9) 61052 | -4/Lab | Hidden lab's door opened automatically 61052 | -4/Lab | Sensor layout match revealed 61053 | -4/Lab | Gained access to the hidden lab's interior 61124 | -4/Lab | Found Alien Artifact 61164 | -4/Lab | Identified Core Reset Matrix 61164 | -4/Lab | Used Core Reset Matrix 61168 | -4/Lab | Sensed 3 artifacts in vicinity 61249 | -4/Lab | Detected by scanners 61286 | -4/Lab | Found Prototype Energy Gun 61289 | -4/Lab | Identified Hyp. EM Gauss Rifle 61294 | -4/Lab | Confronted by A5 61397 | -4/Lab | Destroyed A5 61441 | -4/Lab | Found Core Expander 61441 | -4/Lab | Installed Core Expander, added new Utility slot 61454 | -4/Lab | Found Integrated Dissipator 61454 | -4/Lab | Installed Integrated Dissipator, increased core heat dissipation (+20) 61466 | -4/Lab | Found Transdimensional Reconstructor 61519 | -4/Lab | Found Exp. Hacking Suite 61525 | -4/Lab | Found Prototype Energy Cannon 61525 | -4/Lab | Identified Potential Cannon 61546 | -4/Lab | Found Prototype Protection 61551 | -4/Lab | Found Quantum Router 61601 | -4/Lab | Discovered exit to Research (range 9) 61608 | -4/Lab | Unable to decrypt terminal 61645 | -4/Lab | Entered Research 61645 | -3/Research | Evolved 2 slots: Power x1, Utility x1 61805 | -3/Research | Identified exit to Quarantine 62281 | -3/Research | Intercept squad dispatched 62297 | -3/Research | Spotted Tracker 62312 | -3/Research | Spotted Combat Programmer 62315 | -3/Research | Destroyed Tracker 62322 | -3/Research | Destroyed Combat Programmer 62525 | -3/Research | Repaired Hvy. Reactive Plating 62636 | -3/Research | Entered Quarantine 62637 | -3/Quarantine | Detected hypermatrix surge 62637 | -3/Quarantine | Sensed 12 artifacts in vicinity 62645 | -3/Quarantine | Identified exit to Research 62734 | -3/Quarantine | Cryocooling Duct disabled 62749 | -3/Quarantine | Ambient heat levels rising (+20) 62749 | -3/Quarantine | Non-combat units ordered to evacuate 62840 | -3/Quarantine | Central database locked down 62977 | -3/Quarantine | Found Subatomic Replicator 63004 | -3/Quarantine | Repaired Lgt. Antimatter Reactor? 63066 | -3/Quarantine | Found Phase Redirector 63218 | -3/Quarantine | Intercept squad dispatched 63232 | -3/Quarantine | Spotted Tracker 63233 | -3/Quarantine | Spotted Tracker 63233 | -3/Quarantine | Destroyed Tracker 63244 | -3/Quarantine | Destroyed Tracker 63254 | -3/Quarantine | Found Dimensional Node Initializer 63261 | -3/Quarantine | Spotted Combat Programmer 63281 | -3/Quarantine | Destroyed Combat Programmer 63288 | -3/Quarantine | Found Hpw. Transdimensional Reconstructor 63291 | -3/Quarantine | Found Hpw. Transdimensional Reconstructor 63491 | -3/Quarantine | Repaired Centrium Wheel 63546 | -3/Quarantine | Repaired Hvy. Hardcell Cannon 63579 | -3/Quarantine | Repaired Centrium Wheel 63634 | -3/Quarantine | Repaired Exp. EM Disruption Field 63667 | -3/Quarantine | Repaired Centrium Wheel 64087 | -3/Quarantine | Found Sigix Broadsword 64111 | -3/Quarantine | Entered Research 64111 | -2/Research | Evolved 2 slots: Power x1, Weapon x1 64112 | -2/Research | Sensed 1 artifact in vicinity 64311 | -2/Research | Fabricated Weapon Mount (x2) 64436 | -2/Research | Identified exit to Testing 64474 | -2/Research | Found Prototype Launcher 64474 | -2/Research | Identified Point Singularity Launcher 64483 | -2/Research | Found Point Singularity Launcher 64518 | -2/Research | Fabricated Thermal Barrier (x1) 64775 | -2/Research | Repaired Hvy. Reactive Plating 64797 | -2/Research | Repaired Centrium Wheel 64873 | -2/Research | Repaired Hvy. Hardcell Cannon 64884 | -2/Research | Intercept squad dispatched 64903 | -2/Research | Spotted Tracker 64903 | -2/Research | Spotted Tracker 64906 | -2/Research | Destroyed Tracker 64908 | -2/Research | Destroyed Tracker 64931 | -2/Research | Warped through subspace 65111 | -2/Research | First assault squad dispatched 65157 | -2/Research | Exp. Hacking Suite fried by hacking feedback 65217 | -2/Research | Identified Med. Regenerative Plating 65297 | -2/Research | Destroyed 7 combat bots 65458 | -2/Research | Fabricated Exp. Signal Interpreter (x1) 65518 | -2/Research | Destroyed 7 combat bots 65566 | -2/Research | Spotted Combat Programmer 65570 | -2/Research | Destroyed Combat Programmer 65749 | -2/Research | Entered Testing 65848 | -2/Testing | Found Potential Cannon 65931 | -2/Testing | Found Prototype Device 65931 | -2/Testing | Identified Exp. Shock Absorption System 66024 | -2/Testing | First assault squad dispatched 66107 | -2/Testing | Scanned by Researcher 66135 | -2/Testing | Destroyed 9 combat bots 66163 | -2/Testing | Found Prototype Leg 66292 | -2/Testing | Fabricated Exp. Transmission Jammer? 66308 | -2/Testing | Build established: Machinist-Mutant 66419 | -2/Testing | Intercept squad dispatched 66426 | -2/Testing | Spotted Tracker 66426 | -2/Testing | Spotted Tracker 66429 | -2/Testing | Spotted Combat Programmer 66430 | -2/Testing | Spotted Combat Programmer 66445 | -2/Testing | Destroyed Tracker 66454 | -2/Testing | Garrison activated, responded to threat 66457 | -2/Testing | Warped through subspace 66482 | -2/Testing | Found Prototype Ballistic Cannon 66632 | -2/Testing | Destroyed Combat Programmer 66654 | -2/Testing | Found Prototype Processor 66654 | -2/Testing | Identified Exp. Core Analyzer 66728 | -2/Testing | Build established: Hacker-Mutant 66757 | -2/Testing | Repaired Broken Hvy. Hardcell Cannon 66769 | -2/Testing | Identified Perforator 66778 | -2/Testing | Repaired Centrium Wheel 66817 | -2/Testing | High security lockdown imminent 66897 | -2/Testing | High security lockdown engaged 66898 | -2/Testing | Found Prototype Protection 66927 | -2/Testing | Destroyed Combat Programmer 66955 | -2/Testing | Spotted Striker 66956 | -2/Testing | Spotted Striker 66965 | -2/Testing | Destroyed Striker 66965 | -2/Testing | Destroyed Striker 66992 | -2/Testing | Destroyed 9 combat bots 67029 | -2/Testing | Found Prototype Protection 67029 | -2/Testing | Identified Hvy. Regenerative Plating 67052 | -2/Testing | Spotted Investigator 67059 | -2/Testing | Spotted Executioner 67068 | -2/Testing | Spotted Striker 67068 | -2/Testing | Spotted Executioner 67083 | -2/Testing | Destroyed Executioner 67088 | -2/Testing | Destroyed Striker 67097 | -2/Testing | Destroyed Investigator 67106 | -2/Testing | Destroyed Executioner 67127 | -2/Testing | Destroyed 26 combat bots 67217 | -2/Testing | Spotted Striker 67221 | -2/Testing | Destroyed Striker 67234 | -2/Testing | Spotted Striker 67235 | -2/Testing | Spotted Striker 67238 | -2/Testing | Destroyed Striker 67324 | -2/Testing | Destroyed 20 combat bots 67325 | -2/Testing | Core integrity fell below 50% 67342 | -2/Testing | Core integrity fell below 20% 67350 | -2/Testing | Identified Myomer Exoskeleton 67351 | -2/Testing | Identified SHELL Armor 67375 | -2/Testing | Used Subatomic Replicator to replicate SHELL Armor 67378 | -2/Testing | Lost 13 parts (3p3n5u2w) 67407 | -2/Testing | Initialized slip node 67429 | -2/Testing | Destroyed by P-80 Master with Gamma Rifle Last Messages --------------- 67353_ M-36 Artificer fits Unknown Hover Unit on G-73 Enforcer. 67359_ M-36 Artificer repairs Lgt. Quantum Reactor. 67367_ ALERT: Heavy assault forces dispatched. 67374_ Dropped SHELL Armor. 67375_ Replicated SHELL Armor. 67376_ Acquired SHELL Armor. 67383_ G-73 Enforcer destroyed. 67407_ Initializer activates and latches into the ground. 67409_ Dimensional Slip Node implodes. 67409_ L-61 Swordsman destroyed. 67409_ Sigix Broadsword destroyed. 67409_ G-73 Enforcer destroyed. 67409_ Antimatter Diverter explodes. 67409_ Deep Network Scanner destroyed. 67410_ The unstable cave ceiling collapses. 67420_ Acquired Prototype Device. 67420_ Identified Coolant Network. 67422_ System corrupted: Matter fused (-8). 67422_ The unstable cave ceiling collapses. 67428_ Kicked P-80 Master out of the way. Map ----- +----------------------------------------------------+ | ???????????????????????????????????? | | ???????????????????????????????????? | | ???????????????????????????????????? | | ???????????????????????????????????? | | ???????????????????????????????????? | | ??????????????????????????##???????? | | ?????????????????????????? #???????? | | ?????????????????????????# #???????? | | ?????????????????????????# #???????? | | ?????????????????????????# #???????? | | ?????????????????######### #???????? | | ?????????????????# """ ## ######### | | ?????????????????# """ # # """" # | | ?????????????????# """ + [# """" # | | ?????????????????# # # """" # | | ?????????????????# ## ## """" # | | ?????????????????# "#!"" # | | ?????????????????#####/##% !"] # | | ?????????????????????# #===!!=!"#### | | ?????????????????????# #*!![= *[# # | | ?????????????????????# ## !!/!! ## | | ?????????????#####???# ## ![=!=*# | | ???????????### ##### ## [ !/!!!# | | ???????#??## ### #%#%%#%# | | ???# ## ## ## ####%*%%## | | ???# p@p ## ![*%[*! # | | ????### # C ###=!#!#" | | ??????# # # #?##!#### | | ??????# # ## #??#%#??? | | ??????## # # #??#%#??? | | ???????# # # ####%#??? | | ???????# ##=##+#### | | ???????# # # ##*%!*%% | | ???????# !! # # = ###%""[!""" | | ???????# =! # *%/%!%=["=!""" | | ??????## ## "*"! "#""!!""" | | ??????# ## """*""#S !%""" | | ??????+ # """[""#"" """ | | ??????# + """ S#"" | | ??????# ###/#### """ ""#"" = | | ??????#???## ^ ## """ ""# | | ???????????# "" ##= """ ""######### | | ???????????#""" ## ????????? | | ???????????#"R ^ #########???????? | | ???????????#""" #???????????????? | | ???????????#""" #??????????????? | | ???????????# #???????????????? | | ???????????#######????????????????? | | ???????????????????????????????????? | | ???????????????????????????????????? | +----------------------------------------------------+ Best States ------------- Heat Dissipation 126 Coolant Potential 65 Energy Generation 81 Energy Capacity 850 Matter Stores 300 Matter Capacity 300 Sight Range 16 Robot Scan Range 20 Terrain Scan Density 10 Jamming Range 16 Armor Coverage 2500 Resistance: KI 40 Resistance: TH 50 Resistance: EM 75 Utility Shielding 90 Weapon Cycling 25 Phase Shifting 20 Evasion (%) 60 Targeting Accuracy 32 Target Analysis 6 Core Analysis 6 Armor Integrity Analysis 40 Recoil Reduction 4 Offensive Hacking 67 Defensive Hacking 54 Authchip Count 8 Trap Extractor Capacity 6 Item Schematics ----------------- Weapon Mount | -3/Research | Hacked Exp. Signal Interpreter | -3/Quarantine | Hacked Thermal Barrier | -3/Quarantine | Hacked Exp. Transmission Jammer | -3/Quarantine | Hacked Cld. Q-thruster | -3/Quarantine | Hacked Exp. Reaction Control System | -3/Quarantine | Hacked Lgt. Antimatter Cannon | -2/Testing | Archive Cld. Linear Gravjet | -2/Testing | Archive Imp. Quantum Reactor | -2/Testing | Archive Graviton Reactor | -2/Testing | Archive Exp. Matter Compressor | -2/Testing | Archive Lrn. Phase Cannon | -2/Testing | Archive Lgt. Regenerative Plating | -2/Testing | Hacked Med. Regenerative Plating | -2/Testing | Hacked Hdn. Centrium Heavy Treads | -2/Testing | Archive Exp. Force Field | -2/Testing | Archive Exp. Gyrokinetic Inverter | -2/Testing | Archive Robot Schematics ------------------ R-10 Processor | -2/Testing | Archive R-06 Scavenger | -2/Testing | Archive G-67 Veteran | -2/Testing | Archive Fabricated ------------ Combat Drone Bay | x1 | -6/Factory | Authchip Powered Armor | x2 | -6/Factory | Authchip Hyp. Gauss Rifle | x2 | -6/Factory | Authchip Hyp. Gauss Rifle | x2 | -6/Factory | Authchip Hyp. Gauss Cannon | x2 | -5/Factory | Preloaded Combat Drone Bay | x1 | -5/Factory | Authchip Exp. Utility Shielding | x1 | -5/Factory | Authchip Exp. Utility Shielding | x1 | -5/Factory | Authchip Hvy. Hardcell Cannon | x1 | -4/Armory | Authchip Centrium Wheel | x2 | -4/Armory | Authchip Centrium Wheel | x2 | -4/Armory | Authchip Humpback | x1 | -4/Armory | Authchip Hvy. Reactive Plating | x1 | -4/Armory | Authchip Adv. Hardlight Generator | x2 | -4/Armory | Authchip Exp. Hacking Suite | x1 | -4/Armory | Authchip Exp. Utility Shielding | x1 | -4/Armory Weapon Mount | x2 | -2/Research Thermal Barrier | x1 | -2/Research Exp. Signal Interpreter | x1 | -2/Research Exp. Transmission Jammer | x1 | -2/Testing Alien Tech Used ----------------- Integrated Reactor Transdimensional Reconstructor Core Reset Matrix Core Expander Integrated Dissipator Sigix Broadsword High-powered Transdimensional Reconstructor Phase Redirector Subatomic Replicator Dimensional Node Initializer Achievements -------------- None Challenges ------------ None Game ------ Seed NeutronElectronConstruct Manual? 0 Play Time 13:05:25 Cumulative 680.3 hours Start 2023.03.15 @ 19:06:32 End 2023.03.22 @ 22:44:41 Sessions 37 Manual Loads 0 Difficulty Rogue Special Mode None Game No. 76 Rogue 61 Adventurer 5 Explorer 10 Win Type - Total 26 Types 6/7/5/0/3/1/3/0/1 Lore% 89 Gallery% 95 Achievement% 85 Wizard Run 0 Options --------- ASCII 0 Keyboard 1 Movement Arrows Keybinds 0 Fullscreen 2 Font 18/SmallcapsGlow Map View 76x50 Tactical HUD 1 Map Filters NONE Filters NONE Steam 1 RUN: 45f3cf63-6266-42d3-9dfc-75e9b0c89ee3